{"text_format":"1","workbook":"xlsx","n_sheets":18,"sheets":["FAQ","Change Log","SpecialRules","Links","Skills","RuleSetCorpus","Roster","StarDDB","Stars","Draft","Team","Leveling","TeamLog","Configuration","Positions","RosterDDB","Translation","Inducement"],"not_rendered":{"charts":0,"images":0,"macros":1,"external_links":0,"defined_names":162,"comments":1,"pivot_tables":0},"unopened":[],"bounds":{"document_bytes":16777216,"sheet_cells":100000,"rows_first":2000,"rows_last":500,"rows_between":2000,"halvings":0,"cell_chars":16384,"cell_head_chars":4096},"cells_cut":0,"cells_raw":0,"read":"whole","date_system":"1900"}

{"sheet":"FAQ","index":0,"n_rows":15,"n_cols":2,"rows_kept":15,"cut":false,"hidden":false,"merged":[]}
["What do you want to do ?","HOW"]
["What does this file ?","It manages : \n- BB2020 Rosters, basic mod\n- Draft process to create a team, from a roster\n- Create a team, and update it with basic features"]
["Comment créer une équipe","1 - Dans Draft, sélectionner le roster et le budget, cliquez sur 'Start Draft'\n2 - Choisissez les positions, et le staff\n3 - Cliquez sur 'Validate Franchise'"]
[]
["Après la création de la Franchise"]
["Comment mettre à jour le cash","Edition directe du champ Treasure"]
["Comment acheter un joueur","Vous sélectionnez une ligne libre, dans la colonne position, vous choisissez quel positionnel vous prenez. Ensuite, vous mettez son nom et ajustez la trésorerie"]
["Comment ajouter un  journalier","A partir de la position 17, vous pouvez ajouter un journalier, pris en compte dans la valeur de l'équipe."]
["Comment mettre à jour la franchise, avec les evènements de match","Vous pouvez modifier toutes les cellules de fond blanc.\nAttention, lorsque, sur une ligne, vous choisissez une nouvelle position, les informations de caractéristiques sont écrasées avec l'info sur le nouveau positionnel.\nSur la droite une série de click sur les cases grises vous permet de définir des ajouts/suppression de skill, blessures, et variation de charactéristiques. Une fois l'ajout ou le retrait fait, veillez à mettre à jour la zone Gain du joueur correspondant."]
[]
["Sage Advice"]
[null,"Une fois la franchise créée, sauvegarder le fichier sous un autre nom. Vous avez maintenant le fichier de votre franchise.\nN'utilisez plus que l'onglet 'Team'"]
[null,"Eviter les copier/coller, ca peut avoir des effets de bord inattendus"]
[null,"Remontez au créateur du fichier les PBs que vous rencontrez, pour améliorer l'outils. maryan.games@hotmail.com"]
["Comment mettre les libellés de mon choix","1 - Afficher l'onglet caché 'Translation'\n2 - Identifiez les traductions que vous souhaitez changer. Modifier la traduction de la langue cible que vous souhaitez.\n3 - Appliquer le changement de langue dans l'onglet Configuration (on peut ré-appliquer la même langue)"]

{"sheet":"Change Log","index":1,"n_rows":11,"n_cols":4,"rows_kept":11,"cut":false,"hidden":false,"merged":[]}
["Date","Version","Fonctionnalités","Datas"]
[null,"00.05","Creation du fichier"]
[null,"00.06","boutons de gestion des updates de joueur"]
["2020-09-15","00.07","Meilleure gestion de la manipulation des Rosters","Ajout de rosters standards : WE, MV, Nurgle"]
["2020-09-23","00.08","Ajout d'outils sur la droite de la feuille d'équipe pour ajouter skill, blessure et variation de carac.","Ajout roster standard Lizarmen"]
["2020-09-30","00.09","Ajout d'un gestionnaire de Star player : Consultation et mise à jour.\nIl est conseillé de charger la police de caractère NUFFLE sur le PC avant utilisation."]
["2020-10-28","00.12","Nettoyage des onglets non utilisables (et donc cachés)","Tous les rosters BB2020 dispos\nTous les star player BB2020 dispos"]
["2020-11-16","00.13","fonction : \nAjout de l'info 'source' sur les Star players\n","Teams of Legend\nWD458"]
["2020-11-29","00.15","Début du travail de traduction","Spike 11\nNAF 2021"]
["2020-12-30","00.16","Traduction :\nVous pouvez changer de langue le référentiel (onglet configuration)\nVous pouvez mettre les traductions que vous voulez, en allant modifier le contenu de l'onglet caché 'Translation'\nIl est possible d'ajouter d'autres langues. Contectez moi si besoin.","Correction roster Orc"]
["2021-01-02","00.17","Traduction :\nAttention, ne placez surtout pas de doublon dans l'onglet translation. Ca fait tout déconner :-)","Traduction des rosters, des skills, des règles spéciales d'équipes, et nom des règles spéciale de star player en Français\nCorrections de données de roster, merci MagicMoon"]

{"sheet":"SpecialRules","index":2,"n_rows":18,"n_cols":3,"rows_kept":18,"cut":false,"hidden":true,"merged":[]}
["ID","Name","Details"]
[14,"Toute équipe"]
[1,"Bagarre des Terres arides"]
[2,"Chantage et Corruption"]
[8,"Ligue des royaumes Elfiques"]
[10,"Favori de …"]
[15,"Favori de Khorne"]
[9,"Favori de Nurgle"]
[16,"Favori de Slanesh"]
[17,"Favori de Tzeench"]
[12,"Coupe dé à coudre"]
[4,"Lineman à vil prix","Linemen of this team don't count their base value in team value."]
[11,"Super-Ligue de Lustrie"]
[6,"Maitre de la Non-Vie"]
[3,"Classique du Vieux Monde"]
[7,"Sport de sylvanie"]
[5,"Défi des Bas fonds"]
[13,"Super-ligue du bord du Monde"]

{"sheet":"Links","index":3,"n_rows":1097,"n_cols":9,"rows_kept":1097,"cut":false,"hidden":true,"merged":[]}
["Rosters_ID","SpecialRules_ID",null,"Position_ID","Skill_ID","associated txt",null,"Roster_ID","RuleSetCorpus_ID"]
["4","3",null,"1","4",null,null,1,1]
["17","12",null,"1","76"]
["17","3",null,"1","79"]
["19","8",null,"1","60"]
["13","3",null,"4","50"]
["13","13",null,"4","52"]
["14","8",null,"15","62"]
["2","2",null,"15","88"]
["2","4",null,"15","55"]
["2","5",null,"15","74"]
["22","5",null,"15","75"]
["1","1",null,"15","95"]
["1","2",null,"15","85"]
["8","6",null,"16","4"]
["8","7",null,"16","76"]
["5","1",null,"16","9"]
["5","4",null,"16","79"]
["5","3",null,"16","80"]
["3","3",null,"16","83"]
["10","6",null,"17","64"]
["10","7",null,"17","4"]
["7","2",null,"17","76"]
["7","5",null,"17","77"]
["11","8",null,"17","9"]
["23","11",null,"17","79"]
["25","8",null,"18","4"]
["26","11",null,"18","73"]
["26","3",null,"18","76"]
["21","3",null,"18","9"]
["27","7",null,"18","79"]
["28","7",null,"19","4"]
["24","1",null,"19","76"]
["24","10",null,"19","9"]
["24","13",null,"19","11"]
["29","15",null,"19","79"]
["30","11",null,"20","15"]
["18","10",null,"20","54"]
["16","10",null,"20","55"]
["20","1",null,"20","75"]
["20","2",null,"20","77"]
["20","5",null,"20","58"]
["15","11",null,"21","62"]
["12","9",null,"21","88"]
["9","1",null,"21","55"]
["6","1",null,"21","74"]
[null,null,null,"21","75"]
[null,null,null,"21","95"]
[null,null,null,"21","85"]
[null,null,null,"23","49"]
[null,null,null,"23","50"]
[null,null,null,"23","88"]
[null,null,null,"23","60"]
[null,null,null,"24","88"]
[null,null,null,"24","60"]
[null,null,null,"25","88"]
[null,null,null,"25","60"]
[null,null,null,"27","94"]
[null,null,null,"27","4"]
[null,null,null,"27","76"]
[null,null,null,"27","79"]
[null,null,null,"28","97"]
[null,null,null,"28","65"]
[null,null,null,"28","89"]
[null,null,null,"28","55"]
[null,null,null,"28","60"]
[null,null,null,"28","85"]
[null,null,null,"29","97"]
[null,null,null,"29","89"]
[null,null,null,"29","55"]
[null,null,null,"29","58"]
[null,null,null,"29","59"]
[null,null,null,"29","82"]
[null,null,null,"29","60"]
[null,null,null,"29","85"]
[null,null,null,"29","84"]
[null,null,null,"35","94"]
[null,null,null,"35","46"]
[null,null,null,"35","22"]
[null,null,null,"36","94"]
[null,null,null,"36","1"]
[null,null,null,"36","4"]
[null,null,null,"37","94"]
[null,null,null,"37","13"]
[null,null,null,"38","88"]
[null,null,null,"38","60"]
[null,null,null,"39","4"]
[null,null,null,"39","76"]
[null,null,null,"39","9"]
[null,null,null,"39","79"]
[null,null,null,"39","83"]
[null,null,null,"40","65"]
[null,null,null,"40","69"]
[null,null,null,"40","55"]
[null,null,null,"40","60"]
[null,null,null,"41","65"]
[null,null,null,"41","55"]
[null,null,null,"41","60"]
[null,null,null,"41","85"]
[null,null,null,"42","17"]
[null,null,null,"43","13"]
[null,null,null,"43","17"]
[null,null,null,"45","60"]
[null,null,null,"46","62"]
[null,null,null,"46","89"]
[null,null,null,"46","55"]
[null,null,null,"46","74"]
[null,null,null,"46","75"]
[null,null,null,"46","95"]
[null,null,null,"46","85"]
[null,null,null,"47","17"]
[null,null,null,"47","44"]
[null,null,null,"47","46"]
[null,null,null,"48","4"]
[null,null,null,"48","76"]
[null,null,null,"48","79"]
[null,null,null,"49","4"]
[null,null,null,"49","76"]
[null,null,null,"49","9"]
[null,null,null,"49","79"]
[null,null,null,"49","80"]
[null,null,null,"49","83"]
[null,null,null,"50","94"]
[null,null,null,"51","94"]
[null,null,null,"51","46"]
[null,null,null,"51","22"]
[null,null,null,"52","94"]
[null,null,null,"52","4"]
[null,null,null,"53","94"]
[null,null,null,"53","13"]
[null,null,null,"54","62"]
[null,null,null,"54","97"]
[null,null,null,"54","89"]
[null,null,null,"54","55"]
[null,null,null,"54","74"]
[null,null,null,"54","75"]
[null,null,null,"54","95"]
[null,null,null,"54","85"]
[null,null,null,"55","61"]
[null,null,null,"55","97"]
[null,null,null,"55","17"]
[null,null,null,"55","89"]
[null,null,null,"55","55"]
[null,null,null,"55","33"]
[null,null,null,"68","95"]
[null,null,null,"68","60"]
[null,null,null,"73","95"]
[null,null,null,"74","4"]
[null,null,null,"75","13"]
[null,null,null,"75","95"]
[null,null,null,"76","55"]
[null,null,null,"76","95"]
[null,null,null,"82","67"]
[null,null,null,"82","72"]
[null,null,null,"83","72"]
[null,null,null,"83","95"]
[null,null,null,"84","27"]
[null,null,null,"84","29"]
[null,null,null,"84","72"]
[null,null,null,"84","95"]
[null,null,null,"85","27"]
[null,null,null,"85","29"]
[null,null,null,"85","89"]
[null,null,null,"85","55"]
[null,null,null,"85","72"]
[null,null,null,"85","75"]
[null,null,null,"85","95"]
[null,null,null,"85","34"]
[null,null,null,"86","13"]
[null,null,null,"86","60"]
[null,null,null,"87","22"]
[null,null,null,"87","60"]
[null,null,null,"88","13"]
[null,null,null,"88","60"]
[null,null,null,"89","13"]
[null,null,null,"89","14"]
[null,null,null,"89","17"]
[null,null,null,"89","60"]
[null,null,null,"90","51"]
[null,null,null,"90","15"]
[null,null,null,"90","54"]
[null,null,null,"90","90"]
[null,null,null,"90","55"]
[null,null,null,"90","71"]
[null,null,null,"90","77"]
[null,null,null,"90","58"]
[null,null,null,"92","46"]
[null,null,null,"93","1"]
[null,null,null,"93","44"]
[null,null,null,"94","13"]
[null,null,null,"94","9"]
[null,null,null,"95","4"]
[null,null,null,"95","79"]
[null,null,null,"96","4"]
[null,null,null,"96","20"]
[null,null,null,"96","45"]
[null,null,null,"96","79"]
[null,null,null,"98","33"]
[null,null,null,"98","55"]
[null,null,null,"98","60"]
[null,null,null,"98","65"]
[null,null,null,"98","89"]
[null,null,null,"78","46"]
[null,null,null,"79","1"]
[null,null,null,"79","4"]
[null,null,null,"80","13"]
[null,null,null,"80","4"]
[null,null,null,"80","7"]
[null,null,null,"81","89"]
[null,null,null,"81","55"]
[null,null,null,"81","58"]
[null,null,null,"81","59"]
[null,null,null,"81","82"]
[null,null,null,"81","60"]
[null,null,null,"81","85"]
[null,null,null,"62","92"]
[null,null,null,"63","87"]
[null,null,null,"63","46"]
[null,null,null,"63","22"]
[null,null,null,"64","87"]
[null,null,null,"64","13"]
[null,null,null,"65","92"]
[null,null,null,"66","4"]
[null,null,null,"66","76"]
[null,null,null,"66","79"]
[null,null,null,"67","62"]
[null,null,null,"67","89"]
[null,null,null,"67","55"]
[null,null,null,"67","74"]
[null,null,null,"67","75"]
[null,null,null,"67","95"]
[null,null,null,"67","85"]
[null,null,null,"99","30"]
[null,null,null,"101","97"]
[null,null,null,"101","65"]
[null,null,null,"101","89"]
[null,null,null,"101","55"]
[null,null,null,"101","60"]
[null,null,null,"101","85"]
[null,null,null,"102","62"]
[null,null,null,"102","97"]
[null,null,null,"102","89"]
[null,null,null,"102","55"]
[null,null,null,"102","74"]
[null,null,null,"102","75"]
[null,null,null,"102","95"]
[null,null,null,"102","85"]
[null,null,null,"103","97"]
[null,null,null,"103","17"]
[null,null,null,"103","89"]
[null,null,null,"103","55"]
[null,null,null,"103","60"]
[null,null,null,"103","86"]
[null,null,null,"30","16"]
[null,null,null,"31","46"]
[null,null,null,"31","47"]
[null,null,null,"32","13"]
[null,null,null,"32","1"]
[null,null,null,"33","58"]
[null,null,null,"33","24"]
[null,null,null,"34","97"]
[null,null,null,"34","65"]
[null,null,null,"34","89"]
[null,null,null,"34","55"]
[null,null,null,"34","60"]
[null,null,null,"34","85"]
[null,null,null,"61","95"]
[null,null,null,"104","4"]
[null,null,null,"105","13"]
[null,null,null,"105","29"]
[null,null,null,"105","71"]
[null,null,null,"105","95"]
[null,null,null,"105","9"]
[null,null,null,"106","26"]
[null,null,null,"106","17"]
[null,null,null,"106","95"]
[null,null,null,"107","95"]
[null,null,null,"107","58"]
[null,null,null,"107","60"]
[null,null,null,"108","4"]
[null,null,null,"108","76"]
[null,null,null,"108","79"]
[null,null,null,"109","4"]
[null,null,null,"109","16"]
[null,null,null,"109","79"]
[null,null,null,"110","1"]
[null,null,null,"110","4"]
[null,null,null,"110","76"]
[null,null,null,"110","11"]
[null,null,null,"110","79"]
[null,null,null,"111","55"]
[null,null,null,"111","58"]
[null,null,null,"111","59"]
[null,null,null,"111","82"]
[null,null,null,"111","60"]
[null,null,null,"111","85"]
[null,null,null,"111","84"]
[null,null,null,"112","16"]
[null,null,null,"113","46"]
[null,null,null,"113","47"]
[null,null,null,"114","13"]
[null,null,null,"114","1"]
[null,null,null,"115","58"]
[null,null,null,"115","24"]
[null,null,null,"116","97"]
[null,null,null,"116","65"]
[null,null,null,"116","89"]
[null,null,null,"116","55"]
[null,null,null,"116","60"]
[null,null,null,"116","85"]
[null,null,null,"117","4"]
[null,null,null,"117","76"]
[null,null,null,"117","79"]
[null,null,null,"118","4"]
[null,null,null,"118","76"]
[null,null,null,"118","9"]
[null,null,null,"118","79"]
[null,null,null,"118","80"]
[null,null,null,"118","83"]
[null,null,null,"119","94"]
[null,null,null,"120","94"]
[null,null,null,"120","46"]
[null,null,null,"120","22"]
[null,null,null,"121","94"]
[null,null,null,"121","4"]
[null,null,null,"122","94"]
[null,null,null,"122","13"]
[null,null,null,"123","62"]
[null,null,null,"123","97"]
[null,null,null,"123","89"]
[null,null,null,"123","55"]
[null,null,null,"123","74"]
[null,null,null,"123","75"]
[null,null,null,"123","95"]
[null,null,null,"123","85"]
[null,null,null,"124","61"]
[null,null,null,"124","97"]
[null,null,null,"124","17"]
[null,null,null,"124","89"]
[null,null,null,"124","55"]
[null,null,null,"124","33"]
[null,null,null,"125","4"]
[null,null,null,"125","76"]
[null,null,null,"125","79"]
[null,null,null,"126","4"]
[null,null,null,"126","16"]
[null,null,null,"126","79"]
[null,null,null,"127","1"]
[null,null,null,"127","4"]
[null,null,null,"127","76"]
[null,null,null,"127","11"]
[null,null,null,"127","79"]
[null,null,null,"128","55"]
[null,null,null,"128","58"]
[null,null,null,"128","59"]
[null,null,null,"128","82"]
[null,null,null,"128","60"]
[null,null,null,"128","85"]
[null,null,null,"128","84"]
[null,null,null,"129","4"]
[null,null,null,"129","79"]
[null,null,null,"130","4"]
[null,null,null,"130","45"]
[null,null,null,"130","20"]
[null,null,null,"130","79"]
[null,null,null,"132","65"]
[null,null,null,"132","89"]
[null,null,null,"132","55"]
[null,null,null,"132","33"]
[null,null,null,"132","60"]
[null,null,null,"133","30"]
[null,null,null,"134","87"]
[null,null,null,"134","46"]
[null,null,null,"134","8"]
[null,null,null,"135","87"]
[null,null,null,"136","87"]
[null,null,null,"137","87"]
[null,null,null,"138","87"]
[null,null,null,"139","87"]
[null,null,null,"140","87"]
[null,null,null,"141","87"]
[null,null,null,"142","87"]
[null,null,null,"143","30"]
[null,null,null,"144","87"]
[null,null,null,"144","46"]
[null,null,null,"144","8"]
[null,null,null,"145","87"]
[null,null,null,"145","4"]
[null,null,null,"145","76"]
[null,null,null,"145","12"]
[null,null,null,"146","87"]
[null,null,null,"147","87"]
[null,null,null,"148","87"]
[null,null,null,"149","62"]
[null,null,null,"149","98"]
[null,null,null,"149","89"]
[null,null,null,"149","55"]
[null,null,null,"149","74"]
[null,null,null,"149","75"]
[null,null,null,"149","95"]
[null,null,null,"149","85"]
[null,null,null,"150","98"]
[null,null,null,"150","65"]
[null,null,null,"150","89"]
[null,null,null,"150","55"]
[null,null,null,"150","60"]
[null,null,null,"150","85"]
[null,null,null,"151","98"]
[null,null,null,"151","17"]
[null,null,null,"151","30"]
[null,null,null,"151","89"]
[null,null,null,"151","55"]
[null,null,null,"151","60"]
[null,null,null,"151","86"]
[null,null,null,"152","61"]
[null,null,null,"152","98"]
[null,null,null,"152","17"]
[null,null,null,"152","89"]
[null,null,null,"152","55"]
[null,null,null,"152","33"]
[null,null,null,"153","30"]
[null,null,null,"155","62"]
[null,null,null,"155","97"]
[null,null,null,"155","89"]
[null,null,null,"155","55"]
[null,null,null,"155","74"]
[null,null,null,"155","75"]
[null,null,null,"155","95"]
[null,null,null,"155","85"]
[null,null,null,"156","97"]
[null,null,null,"156","65"]
[null,null,null,"156","89"]
[null,null,null,"156","55"]
[null,null,null,"156","60"]
[null,null,null,"156","85"]
[null,null,null,"157","97"]
[null,null,null,"157","17"]
[null,null,null,"157","30"]
[null,null,null,"157","89"]
[null,null,null,"157","55"]
[null,null,null,"157","60"]
[null,null,null,"157","86"]
[null,null,null,"159","87"]
[null,null,null,"159","46"]
[null,null,null,"159","8"]
[null,null,null,"160","87"]
[null,null,null,"160","4"]
[null,null,null,"160","76"]
[null,null,null,"160","12"]
[null,null,null,"161","87"]
[null,null,null,"162","87"]
[null,null,null,"163","87"]
[null,null,null,"164","62"]
[null,null,null,"164","98"]
[null,null,null,"164","89"]
[null,null,null,"164","55"]
[null,null,null,"164","74"]
[null,null,null,"164","75"]
[null,null,null,"164","95"]
[null,null,null,"164","85"]
[null,null,null,"165","98"]
[null,null,null,"165","65"]
[null,null,null,"165","89"]
[null,null,null,"165","55"]
[null,null,null,"165","60"]
[null,null,null,"165","85"]
[null,null,null,"166","98"]
[null,null,null,"166","17"]
[null,null,null,"166","30"]
[null,null,null,"166","89"]
[null,null,null,"166","55"]
[null,null,null,"166","60"]
[null,null,null,"166","86"]
[null,null,null,"167","61"]
[null,null,null,"167","98"]
[null,null,null,"167","17"]
[null,null,null,"167","89"]
[null,null,null,"167","55"]
[null,null,null,"167","33"]
[null,null,null,"169","40"]
[null,null,null,"170","13"]
[null,null,null,"171","20"]
[null,null,null,"171","78"]
[null,null,null,"172","4"]
[null,null,null,"172","17"]
[null,null,null,"172","6"]
[null,null,null,"173","13"]
[null,null,null,"173","60"]
[null,null,null,"174","22"]
[null,null,null,"174","60"]
[null,null,null,"175","13"]
[null,null,null,"175","60"]
[null,null,null,"176","13"]
[null,null,null,"176","14"]
[null,null,null,"176","17"]
[null,null,null,"176","60"]
[null,null,null,"177","51"]
[null,null,null,"177","15"]
[null,null,null,"177","54"]
[null,null,null,"177","90"]
[null,null,null,"177","55"]
[null,null,null,"177","71"]
[null,null,null,"177","77"]
[null,null,null,"177","58"]
[null,null,null,"179","46"]
[null,null,null,"180","1"]
[null,null,null,"180","44"]
[null,null,null,"181","13"]
[null,null,null,"181","9"]
[null,null,null,"182","4"]
[null,null,null,"182","76"]
[null,null,null,"182","9"]
[null,null,null,"182","79"]
[null,null,null,"182","80"]
[null,null,null,"182","83"]
[null,null,null,"183","64"]
[null,null,null,"183","4"]
[null,null,null,"183","76"]
[null,null,null,"183","77"]
[null,null,null,"183","9"]
[null,null,null,"183","79"]
[null,null,null,"184","4"]
[null,null,null,"184","73"]
[null,null,null,"184","76"]
[null,null,null,"184","9"]
[null,null,null,"184","79"]
[null,null,null,"185","4"]
[null,null,null,"185","76"]
[null,null,null,"185","9"]
[null,null,null,"185","11"]
[null,null,null,"185","79"]
[null,null,null,"186","15"]
[null,null,null,"186","54"]
[null,null,null,"186","55"]
[null,null,null,"186","75"]
[null,null,null,"186","77"]
[null,null,null,"186","58"]
[null,null,null,"187","62"]
[null,null,null,"187","88"]
[null,null,null,"187","55"]
[null,null,null,"187","74"]
[null,null,null,"187","75"]
[null,null,null,"187","95"]
[null,null,null,"187","85"]
[null,null,null,"188","4"]
[null,null,null,"188","76"]
[null,null,null,"188","79"]
[null,null,null,"189","64"]
[null,null,null,"189","4"]
[null,null,null,"189","77"]
[null,null,null,"189","79"]
[null,null,null,"190","4"]
[null,null,null,"190","73"]
[null,null,null,"190","79"]
[null,null,null,"191","66"]
[null,null,null,"191","77"]
[null,null,null,"191","79"]
[null,null,null,"192","15"]
[null,null,null,"192","27"]
[null,null,null,"192","4"]
[null,null,null,"192","76"]
[null,null,null,"192","79"]
[null,null,null,"193","63"]
[null,null,null,"193","71"]
[null,null,null,"193","77"]
[null,null,null,"193","79"]
[null,null,null,"194","76"]
[null,null,null,"194","79"]
[null,null,null,"194","81"]
[null,null,null,"195","62"]
[null,null,null,"195","88"]
[null,null,null,"195","55"]
[null,null,null,"195","74"]
[null,null,null,"195","75"]
[null,null,null,"195","95"]
[null,null,null,"195","85"]
[null,null,null,"197","46"]
[null,null,null,"197","22"]
[null,null,null,"198","13"]
[null,null,null,"199","1"]
[null,null,null,"199","4"]
[null,null,null,"200","4"]
[null,null,null,"200","76"]
[null,null,null,"200","79"]
[null,null,null,"201","65"]
[null,null,null,"201","89"]
[null,null,null,"201","55"]
[null,null,null,"201","60"]
[null,null,null,"201","85"]
[null,null,null,"206","94"]
[null,null,null,"206","4"]
[null,null,null,"206","76"]
[null,null,null,"206","79"]
[null,null,null,"203","49"]
[null,null,null,"203","50"]
[null,null,null,"203","88"]
[null,null,null,"203","60"]
[null,null,null,"204","88"]
[null,null,null,"204","60"]
[null,null,null,"205","88"]
[null,null,null,"205","60"]
[null,null,null,"215","94"]
[null,null,null,"215","13"]
[null,null,null,"217","97"]
[null,null,null,"217","89"]
[null,null,null,"217","55"]
[null,null,null,"217","58"]
[null,null,null,"217","59"]
[null,null,null,"217","82"]
[null,null,null,"217","60"]
[null,null,null,"217","85"]
[null,null,null,"217","84"]
[null,null,null,"208","94"]
[null,null,null,"208","46"]
[null,null,null,"208","22"]
[null,null,null,"209","94"]
[null,null,null,"209","1"]
[null,null,null,"209","4"]
[null,null,null,"210","94"]
[null,null,null,"210","13"]
[null,null,null,"211","49"]
[null,null,null,"211","50"]
[null,null,null,"211","88"]
[null,null,null,"211","60"]
[null,null,null,"212","88"]
[null,null,null,"212","60"]
[null,null,null,"213","88"]
[null,null,null,"213","60"]
[null,null,null,"214","88"]
[null,null,null,"214","60"]
[null,null,null,"216","94"]
[null,null,null,"216","4"]
[null,null,null,"216","76"]
[null,null,null,"216","79"]
[null,null,null,"219","97"]
[null,null,null,"219","65"]
[null,null,null,"219","89"]
[null,null,null,"219","55"]
[null,null,null,"219","60"]
[null,null,null,"219","85"]
[null,null,null,"220","97"]
[null,null,null,"220","89"]
[null,null,null,"220","55"]
[null,null,null,"220","58"]
[null,null,null,"220","59"]
[null,null,null,"220","82"]
[null,null,null,"220","60"]
[null,null,null,"220","85"]
[null,null,null,"220","84"]
[null,null,null,"228","61"]
[null,null,null,"228","97"]
[null,null,null,"228","17"]
[null,null,null,"228","89"]
[null,null,null,"228","55"]
[null,null,null,"228","33"]
[null,null,null,"222","46"]
[null,null,null,"222","22"]
[null,null,null,"223","4"]
[null,null,null,"224","13"]
[null,null,null,"225","61"]
[null,null,null,"225","97"]
[null,null,null,"225","17"]
[null,null,null,"225","89"]
[null,null,null,"225","55"]
[null,null,null,"225","33"]
[null,null,null,"226","17"]
[null,null,null,"227","13"]
[null,null,null,"227","17"]
[null,null,null,"230","17"]
[null,null,null,"230","44"]
[null,null,null,"230","46"]
[null,null,null,"233","60"]
[null,null,null,"234","62"]
[null,null,null,"234","89"]
[null,null,null,"234","55"]
[null,null,null,"234","74"]
[null,null,null,"234","75"]
[null,null,null,"234","95"]
[null,null,null,"234","85"]
[null,null,null,"235","4"]
[null,null,null,"235","76"]
[null,null,null,"235","79"]
[null,null,null,"235","60"]
[null,null,null,"236","50"]
[null,null,null,"236","52"]
[null,null,null,"237","62"]
[null,null,null,"237","88"]
[null,null,null,"237","55"]
[null,null,null,"237","74"]
[null,null,null,"237","75"]
[null,null,null,"237","95"]
[null,null,null,"237","85"]
[null,null,null,"238","95"]
[null,null,null,"239","4"]
[null,null,null,"240","13"]
[null,null,null,"240","29"]
[null,null,null,"240","71"]
[null,null,null,"240","95"]
[null,null,null,"240","9"]
[null,null,null,"241","26"]
[null,null,null,"241","17"]
[null,null,null,"241","95"]
[null,null,null,"242","95"]
[null,null,null,"242","58"]
[null,null,null,"242","60"]
[null,null,null,"243","4"]
[null,null,null,"243","76"]
[null,null,null,"243","9"]
[null,null,null,"243","79"]
[null,null,null,"243","83"]
[null,null,null,"244","65"]
[null,null,null,"244","69"]
[null,null,null,"244","55"]
[null,null,null,"244","60"]
[null,null,null,"245","65"]
[null,null,null,"245","55"]
[null,null,null,"245","60"]
[null,null,null,"245","85"]
[null,null,null,"247","94"]
[null,null,null,"247","46"]
[null,null,null,"247","22"]
[null,null,null,"248","94"]
[null,null,null,"248","1"]
[null,null,null,"248","4"]
[null,null,null,"249","94"]
[null,null,null,"249","13"]
[null,null,null,"250","49"]
[null,null,null,"250","50"]
[null,null,null,"250","88"]
[null,null,null,"250","60"]
[null,null,null,"251","88"]
[null,null,null,"251","60"]
[null,null,null,"252","88"]
[null,null,null,"252","60"]
[null,null,null,"253","88"]
[null,null,null,"253","60"]
[null,null,null,"254","94"]
[null,null,null,"254","4"]
[null,null,null,"254","76"]
[null,null,null,"254","79"]
[null,null,null,"255","97"]
[null,null,null,"255","65"]
[null,null,null,"255","89"]
[null,null,null,"255","55"]
[null,null,null,"255","60"]
[null,null,null,"255","85"]
[null,null,null,"256","97"]
[null,null,null,"256","89"]
[null,null,null,"256","55"]
[null,null,null,"256","58"]
[null,null,null,"256","59"]
[null,null,null,"256","82"]
[null,null,null,"256","60"]
[null,null,null,"256","85"]
[null,null,null,"256","84"]
[null,null,null,"257","92"]
[null,null,null,"258","87"]
[null,null,null,"258","46"]
[null,null,null,"258","22"]
[null,null,null,"259","87"]
[null,null,null,"259","13"]
[null,null,null,"260","92"]
[null,null,null,"261","4"]
[null,null,null,"261","76"]
[null,null,null,"261","79"]
[null,null,null,"262","62"]
[null,null,null,"262","89"]
[null,null,null,"262","55"]
[null,null,null,"262","74"]
[null,null,null,"262","75"]
[null,null,null,"262","95"]
[null,null,null,"262","85"]
[null,null,null,"263","95"]
[null,null,null,"263","60"]
[null,null,null,"264","95"]
[null,null,null,"265","4"]
[null,null,null,"266","13"]
[null,null,null,"266","95"]
[null,null,null,"267","55"]
[null,null,null,"267","95"]
[null,null,null,"268","4"]
[null,null,null,"268","76"]
[null,null,null,"268","79"]
[null,null,null,"269","4"]
[null,null,null,"269","76"]
[null,null,null,"269","9"]
[null,null,null,"269","79"]
[null,null,null,"269","80"]
[null,null,null,"269","83"]
[null,null,null,"270","94"]
[null,null,null,"271","94"]
[null,null,null,"271","46"]
[null,null,null,"271","22"]
[null,null,null,"272","94"]
[null,null,null,"272","4"]
[null,null,null,"273","94"]
[null,null,null,"273","13"]
[null,null,null,"274","62"]
[null,null,null,"274","97"]
[null,null,null,"274","89"]
[null,null,null,"274","55"]
[null,null,null,"274","74"]
[null,null,null,"274","75"]
[null,null,null,"274","95"]
[null,null,null,"274","85"]
[null,null,null,"275","61"]
[null,null,null,"275","97"]
[null,null,null,"275","17"]
[null,null,null,"275","89"]
[null,null,null,"275","55"]
[null,null,null,"275","33"]
[null,null,null,"277","46"]
[null,null,null,"278","1"]
[null,null,null,"278","4"]
[null,null,null,"279","13"]
[null,null,null,"279","4"]
[null,null,null,"279","7"]
[null,null,null,"280","89"]
[null,null,null,"280","55"]
[null,null,null,"280","58"]
[null,null,null,"280","59"]
[null,null,null,"280","82"]
[null,null,null,"280","60"]
[null,null,null,"280","85"]
[null,null,null,"281","4"]
[null,null,null,"282","4"]
[null,null,null,"282","46"]
[null,null,null,"283","1"]
[null,null,null,"283","4"]
[null,null,null,"284","13"]
[null,null,null,"284","4"]
[null,null,null,"286","13"]
[null,null,null,"286","23"]
[null,null,null,"286","60"]
[null,null,null,"287","11"]
[null,null,null,"287","12"]
[null,null,null,"287","60"]
[null,null,null,"288","61"]
[null,null,null,"288","17"]
[null,null,null,"288","30"]
[null,null,null,"288","89"]
[null,null,null,"288","55"]
[null,null,null,"288","60"]
[null,null,null,"290","39"]
[null,null,null,"290","46"]
[null,null,null,"290","48"]
[null,null,null,"291","1"]
[null,null,null,"292","13"]
[null,null,null,"293","13"]
[null,null,null,"294","13"]
[null,null,null,"294","46"]
[null,null,null,"295","13"]
[null,null,null,"295","17"]
[null,null,null,"295","6"]
[null,null,null,"296","13"]
[null,null,null,"296","14"]
[null,null,null,"297","17"]
[null,null,null,"298","26"]
[null,null,null,"298","27"]
[null,null,null,"298","17"]
[null,null,null,"298","89"]
[null,null,null,"298","86"]
[null,null,null,"300","46"]
[null,null,null,"300","22"]
[null,null,null,"301","13"]
[null,null,null,"302","1"]
[null,null,null,"302","4"]
[null,null,null,"303","4"]
[null,null,null,"303","76"]
[null,null,null,"303","79"]
[null,null,null,"304","65"]
[null,null,null,"304","89"]
[null,null,null,"304","55"]
[null,null,null,"304","60"]
[null,null,null,"304","85"]
[null,null,null,"305","95"]
[null,null,null,"305","60"]
[null,null,null,"306","46"]
[null,null,null,"306","95"]
[null,null,null,"306","22"]
[null,null,null,"306","60"]
[null,null,null,"307","13"]
[null,null,null,"307","95"]
[null,null,null,"307","60"]
[null,null,null,"308","67"]
[null,null,null,"308","95"]
[null,null,null,"310","61"]
[null,null,null,"310","68"]
[null,null,null,"310","95"]
[null,null,null,"312","13"]
[null,null,null,"312","23"]
[null,null,null,"312","60"]
[null,null,null,"313","11"]
[null,null,null,"313","12"]
[null,null,null,"313","60"]
[null,null,null,"314","61"]
[null,null,null,"314","17"]
[null,null,null,"314","30"]
[null,null,null,"314","89"]
[null,null,null,"314","55"]
[null,null,null,"314","60"]
[null,null,null,"315","17"]
[null,null,null,"316","30"]
[null,null,null,"316","54"]
[null,null,null,"316","95"]
[null,null,null,"317","17"]
[null,null,null,"317","30"]
[null,null,null,"317","54"]
[null,null,null,"318","26"]
[null,null,null,"318","17"]
[null,null,null,"318","30"]
[null,null,null,"318","54"]
[null,null,null,"318","89"]
[null,null,null,"318","95"]
[null,null,null,"318","86"]
[null,null,null,"319","73"]
[null,null,null,"319","36"]
[null,null,null,"320","1"]
[null,null,null,"320","2"]
[null,null,null,"320","73"]
[null,null,null,"320","36"]
[null,null,null,"321","3"]
[null,null,null,"321","6"]
[null,null,null,"321","73"]
[null,null,null,"321","23"]
[null,null,null,"321","36"]
[null,null,null,"322","65"]
[null,null,null,"322","89"]
[null,null,null,"322","55"]
[null,null,null,"322","33"]
[null,null,null,"322","60"]
[null,null,null,"323","92"]
[null,null,null,"324","87"]
[null,null,null,"324","46"]
[null,null,null,"324","22"]
[null,null,null,"325","87"]
[null,null,null,"325","13"]
[null,null,null,"326","92"]
[null,null,null,"327","4"]
[null,null,null,"327","76"]
[null,null,null,"327","79"]
[null,null,null,"328","62"]
[null,null,null,"328","89"]
[null,null,null,"328","55"]
[null,null,null,"328","74"]
[null,null,null,"328","75"]
[null,null,null,"328","95"]
[null,null,null,"328","85"]
[null,null,null,"330","87"]
[null,null,null,"330","46"]
[null,null,null,"330","8"]
[null,null,null,"331","87"]
[null,null,null,"331","4"]
[null,null,null,"331","76"]
[null,null,null,"331","12"]
[null,null,null,"332","87"]
[null,null,null,"333","87"]
[null,null,null,"334","87"]
[null,null,null,"335","62"]
[null,null,null,"335","98"]
[null,null,null,"335","89"]
[null,null,null,"335","55"]
[null,null,null,"335","74"]
[null,null,null,"335","75"]
[null,null,null,"335","95"]
[null,null,null,"335","85"]
[null,null,null,"336","98"]
[null,null,null,"336","65"]
[null,null,null,"336","89"]
[null,null,null,"336","55"]
[null,null,null,"336","60"]
[null,null,null,"336","85"]
[null,null,null,"337","98"]
[null,null,null,"337","17"]
[null,null,null,"337","30"]
[null,null,null,"337","89"]
[null,null,null,"337","55"]
[null,null,null,"337","60"]
[null,null,null,"337","86"]
[null,null,null,"338","61"]
[null,null,null,"338","98"]
[null,null,null,"338","17"]
[null,null,null,"338","89"]
[null,null,null,"338","55"]
[null,null,null,"338","33"]
[null,null,null,"339","30"]
[null,null,null,"341","62"]
[null,null,null,"341","97"]
[null,null,null,"341","89"]
[null,null,null,"341","55"]
[null,null,null,"341","74"]
[null,null,null,"341","75"]
[null,null,null,"341","95"]
[null,null,null,"341","85"]
[null,null,null,"342","97"]
[null,null,null,"342","65"]
[null,null,null,"342","89"]
[null,null,null,"342","55"]
[null,null,null,"342","60"]
[null,null,null,"342","85"]
[null,null,null,"343","97"]
[null,null,null,"343","17"]
[null,null,null,"343","30"]
[null,null,null,"343","89"]
[null,null,null,"343","55"]
[null,null,null,"343","60"]
[null,null,null,"343","86"]
[null,null,null,"344","4"]
[null,null,null,"344","76"]
[null,null,null,"344","79"]
[null,null,null,"345","64"]
[null,null,null,"345","4"]
[null,null,null,"345","77"]
[null,null,null,"345","79"]
[null,null,null,"346","4"]
[null,null,null,"346","73"]
[null,null,null,"346","79"]
[null,null,null,"347","66"]
[null,null,null,"347","77"]
[null,null,null,"347","79"]
[null,null,null,"348","15"]
[null,null,null,"348","27"]
[null,null,null,"348","4"]
[null,null,null,"348","76"]
[null,null,null,"348","79"]
[null,null,null,"349","63"]
[null,null,null,"349","71"]
[null,null,null,"349","77"]
[null,null,null,"349","79"]
[null,null,null,"350","76"]
[null,null,null,"350","79"]
[null,null,null,"350","81"]
[null,null,null,"351","62"]
[null,null,null,"351","88"]
[null,null,null,"351","55"]
[null,null,null,"351","74"]
[null,null,null,"351","75"]
[null,null,null,"351","95"]
[null,null,null,"351","85"]
[null,null,null,"352","4"]
[null,null,null,"352","79"]
[null,null,null,"353","4"]
[null,null,null,"353","45"]
[null,null,null,"353","20"]
[null,null,null,"353","79"]
[null,null,null,"355","65"]
[null,null,null,"355","89"]
[null,null,null,"355","55"]
[null,null,null,"355","33"]
[null,null,null,"355","60"]
[null,null,null,"356","67"]
[null,null,null,"356","72"]
[null,null,null,"357","72"]
[null,null,null,"357","95"]
[null,null,null,"358","27"]
[null,null,null,"358","29"]
[null,null,null,"358","72"]
[null,null,null,"358","95"]
[null,null,null,"359","27"]
[null,null,null,"359","29"]
[null,null,null,"359","89"]
[null,null,null,"359","55"]
[null,null,null,"359","72"]
[null,null,null,"359","75"]
[null,null,null,"359","95"]
[null,null,null,"359","34"]
[null,null,null,"360","92"]
[null,null,null,"361","87"]
[null,null,null,"361","46"]
[null,null,null,"361","22"]
[null,null,null,"362","87"]
[null,null,null,"362","13"]
[null,null,null,"363","92"]
[null,null,null,"364","4"]
[null,null,null,"364","76"]
[null,null,null,"364","79"]
[null,null,null,"365","62"]
[null,null,null,"365","89"]
[null,null,null,"365","55"]
[null,null,null,"365","74"]
[null,null,null,"365","75"]
[null,null,null,"365","95"]
[null,null,null,"365","85"]
[null,null,null,"366","17"]
[null,null,null,"367","13"]
[null,null,null,"367","17"]
[null,null,null,"368","17"]
[null,null,null,"368","44"]
[null,null,null,"368","46"]
[null,null,null,"369","60"]
[null,null,null,"370","62"]
[null,null,null,"370","89"]
[null,null,null,"370","55"]
[null,null,null,"370","74"]
[null,null,null,"370","75"]
[null,null,null,"370","95"]
[null,null,null,"370","85"]

{"sheet":"Skills","index":4,"n_rows":100,"n_cols":12,"rows_kept":100,"cut":false,"hidden":true,"merged":[]}
["ID","Name","Category","RandomD1","RandomD2","Description",null,null,null,null,"category code","category name"]
[37,"Précision","P",1,1,null,null,null,null,null,"A","Agilité"]
[62,"Toujours Affamé","T",null,null,null,null,null,null,null,"G","Général"]
[61,"Sauvagerie animale","T",null,null,null,null,null,null,null,"P","Passe"]
[93,"Animosité (other positions)","T",null,null,null,null,null,null,null,"S","Force"]
[94,"Animosité (other races)","T",null,null,null,null,null,null,null,"M","Mutation"]
[92,"Animosité (same position)","T",null,null,null,null,null,null,null,"T","Trait"]
[87,"Animosité (x)","T"]
[49,"Clef de bras","S",1,1]
[63,"Chaine et boulet","T"]
[97,"Big Guy Limit (1)","T",null,null,"All position with this skill are exclusive, with a limit of 1 inclusion in the team"]
[98,"Big Guy Limit (3)","T",null,null,"All position with this skill are exclusive, with a limit of 3 inclusion in the team"]
[25,"Main démesurée","M",1,1]
[13,"Blocage","G",1,1]
[64,"Bombardier","T"]
[65,"Cerveau lent","T"]
[50,"Bagarreur","S",1,2]
[51,"Esquive en force","S",1,3]
[38,"Canonier","P",1,2]
[1,"Reception","A",1,1]
[66,"Tronçonneuse","T"]
[26,"Griffes","M",1,2]
[39,"Perce nuage","P",1,3]
[14,"Intrepidité","G",1,2]
[67,"Décomposition","T"]
[5,"Défenseur","A",1,5]
[15,"Joueur déloyal (+1)","G",1,3]
[99,"Joueur déloyal (+2)","T"]
[27,"Présence perturbante","M",1,3]
[2,"Reception plongeante","A",1,2]
[3,"Tacle plongeant","A",1,3]
[4,"Esquive","A",1,4]
[40,"Délestage","P",1,4]
[28,"Bras supplémentaire","M",1,4]
[16,"Parade","G",1,4]
[29,"Répulsion","M",1,5]
[17,"Frénésie","G",1,5]
[41,"Fumblerooskie","P",1,5]
[52,"Projection","S",1,4]
[53,"Garde","S",1,5]
[42,"Passe désespérée","P",1,6]
[30,"Cornes","M",1,6]
[68,"Regard hypnotique","T"]
[31,"Peau de fer","M",2,1]
[54,"Juggernaut","S",1,6]
[6,"Rétablissement","A",1,6]
[18,"Frappe précise","G",1,6]
[69,"Botter de coéquipier","T"]
[43,"Chef","P",2,1]
[7,"Saut","A",2,1]
[91,"Solitaire (2+)","T"]
[88,"Solitaire (3+)","T"]
[89,"Solitaire (4+)","T"]
[90,"Solitaire (5+)","T"]
[70,"Solitaire (X+)","T"]
[55,"Chataigne (+1)","S",2,1]
[96,"Chataigne (+2)","T"]
[32,"Grande gueule","M",2,2]
[56,"Blocage multiple","S",2,2]
[44,"Nerfs d'acier","P",2,2]
[71,"Sans les mains","T"]
[45,"Sur le ballon","P",2,3]
[46,"Passe","P",2,4]
[57,"Marteau pilon","S",2,3]
[72,"Contagieux","T"]
[73,"Echasse à ressort","T"]
[33,"Queue préhensible","M",2,3]
[19,"Pro","G",2,1]
[74,"Gerbe de vomi","T"]
[75,"Gros débile","T"]
[95,"Regeneration","T"]
[76,"Pois plume","T"]
[47,"Passe dans la course","P",2,5]
[8,"Libération contrôlée","A",2,2,"If this player is knocked Down or Placed Prone (but not if they Fall Over) whilst in possession of the ball, the ball does not bounce. Instead, you may place the ball in an unoccupied square adjacent to the one this player occupies when they become Prone."]
[48,"Passe assurée","P",2,6]
[77,"Arme secrète","T"]
[20,"Poursuite","G",2,2]
[9,"Glissade contrôlée","A",2,3]
[10,"Sournois","A",2,4]
[11,"Sprint","A",2,5]
[78,"Poignard","T"]
[58,"Stabilité","S",2,4]
[21,"Arracher le ballon","G",2,3,"When this player targets an opposition player that is in possession of the ball with a Block action (on its own or as part of a Blitz action), chosing to apply a Push Back result will cause that player to drop the ball in the square they are pushed back into. The ball will bounce from the square the player is pushed back into, as if they had been Knocked Down."]
[59,"Bras musclé","S",2,5]
[79,"Minus","T"]
[12,"Equilibre","A",2,6]
[22,"Prise Sûre","G",2,4]
[80,"Déferlement","T"]
[81,"Piqué","T"]
[23,"Tacle","G",2,5]
[82,"Prendre racine","T"]
[34,"Tentacules","M",2,4]
[60,"Crâne épais","S",2,6]
[85,"Lancer de coéquipier","T"]
[83,"Microbe","T"]
[84,"Timmm-ber","T"]
[35,"Deux têtes","M",2,5]
[86,"Fureur débridée","T"]
[36,"très longues jambes","M",2,6]
[24,"Lutte","G",2,6]

{"sheet":"RuleSetCorpus","index":5,"n_rows":2,"n_cols":3,"rows_kept":2,"cut":false,"hidden":true,"merged":[]}
["ID","Name","Description"]
[1,"Official","Official ruleset from BB2020"]

{"sheet":"Roster","index":6,"n_rows":11,"n_cols":13,"rows_kept":11,"cut":false,"hidden":false,"merged":[[4,0,4,1],[4,2,4,8],[4,9,4,10],[3,2,3,3]]}
[null,"Choisit un roster",null,null,null,null,null,null,"Créer un nouveau roster"]
[null,"Orques Sauvages",null,null,null,null,null,null,null,"->"]
[]
[null,null,"Relance",null,15000,"Tiers",2,"Source","My Dugout","Apoticaire","Yes",null,"Select. Comp."]
["Règles spéciales",null,"Bagarre des Terres arides",null,null,null,null,null,null,"Lustrian SuperLeague",null,null,"Thick skull"]
["Qty","Position","Coût","MA","ST","AG","CP","AV","Compétences & Traits","Princip.","Secondary",null,"Ajout ou retire comp."]
["0-16","Savage Orc Lineman",60000,5,3,"3+","4+","8+","Frénésie","S","AGP"]
["0-4","Savage Orc Blitzer",90000,6,3,"3+","4+","8+","Blocage, Frénésie","GS","AP"]
["0-2","Savage Orc Thrower",70000,5,3,"3+","3+","7+","Frénésie, Nerfs d'acier, Passe","GP","AS"]
["0-4","Savage Brute",80000,4,4,"4+","5+","8+","Crâne épais","S","AGP"]
["0-1","Untrained Troll",115000,4,5,"5+","5+","10+","Toujours Affamé, Solitaire (4+), Chataigne (+1), Gerbe de vomi, Gros débile, Regeneration, Lancer de coéquipier","S","AGP"]

{"sheet":"StarDDB","index":7,"n_rows":30,"n_cols":18,"rows_kept":30,"cut":false,"hidden":true,"merged":[]}
["Star ID","subStarID","Star Entry","Star Name","Cost","MA","ST","AG","PA","AV","spSkillListIDs","spSRIdAccess\n(0 for all)","spSRIdForbidden\n(if access to all)","Image","spRuleName","spRuledescription","spSurname","spSource"]
["1","1","The Black Gobbo","The Black Gobbo","225000","6","2","3","3","9"," 64, 27, 4, 88, 9, 10, 78, 79"," 1, 5",null,null,"Le plus sournois de tous","Si votre équipe contient the Black Gobbo, vous pouvez effectuer 2 agressions par tour. L'une des 2 agressions doit être faite par The Black Gobbo lui-même.","","Basic rules"]
["10","1","Eldril Sidewinter","Eldril sindewinter","230000","8","3","2","5","8"," 1, 4, 68, 89, 44, 45"," 8",null,null,"Danse hypnotisante","Une fois par partie, Eldril peut relancer un test d'agilité lorsqu'il tente un test de Hypnotic Gaze","",""]
["11","1","Glart Smashrip","Glart Smashrip","195000","5","4","4","0","9"," 13, 26, 52, 54, 89, 58"," 10, 5",null,null,"Elan frénétique","Une fois par partie, lors d'un Blitz de Glart, il peut gagner la compétence Frenzy. Vous devez l'annoncer avant d'activer Glart. Il ne peut pas, alors, utiliser Grab.","",""]
["12","1","Gloriel summerbloom","Gloriel summerbloom","195000","7","2","2","2","8"," 37, 4, 88, 46, 9, 22"," 8",null,null,"Tout ou rien","Une fois par match, Lorsque Gloriel effectuer une passe, elle gagne la compétence Hail Mary Pass. Vous devez l'annoncer avant d'activer Gloriel","","Basic rules"]
["13","1","Gretchen Wächter","Gretchen Wächter","260000","7","3","2","0","9"," 27, 4, 29, 6, 89, 71, 95, 20, 9"," 7",null,null,"Ethérée","Une fois par partie, après un test d'esquive basé sur l'agilité, Gretchen peut choisir de modifier le résultat en ajoutant sa force.","The Bloodbowl widow","Basic rules"]
["14","1","Griff Oberwald","Griff Oberwald","280000","7","4","2","3","9"," 13, 4, 16, 88, 11, 12"," 12, 3",null,null,"Grand Professionnel","Une fois par partie, Griff peut relancer un dé lancé seul, ou lancé dans un jet de plusieurs dés (ca ne peut être un jet d'armure, de blessure ou casualty).","",""]
["15","1","Grim Ironjaw","Grim Ironjaw","225000","5","4","3","0","9"," 13, 14, 17, 89, 56, 60"," 12, 3, 13",null,null,"Tueur","Une fois par partie, lorsque Grim met au sol, dans une action de blocage, un joueur adverse de force 5 ou plus, vous pouvez ajouter +1 au jet d'armure ou au jet de blessure. L'ajustement peut petre fait après le lancer de dé","",""]
["16","1","Hakflem Skuttlespike","Hakflem Skuttlespike","180000","9","3","2","3","8"," 4, 28, 89, 33, 35"," 10, 5",null,null,"Traître","Une fois par partie, lorsque Hakflem est activé, alors qu'il est à coté du porteur de balle de son équipe, le porteur de balle peut être mis au sol, et Hakflem peut porte rla basse. Il n'y a pas de turn Over  provoqué","",""]
["17","1","Helmut Wulf","Helmut Wulf","140000","6","3","3","0","9"," 66, 89, 19, 77, 58"," 14",null,null,"Vieux Pro","Une fois par partie, Helmut peut utiliser sa compétence PRO pour relancer un dé d'un jet d'armure (ce qui n'est pas autorisé d'habitude)","",""]
["18","1","Karla von Kill","Karla von Kill","230000","6","4","3","4","9"," 13, 14, 4, 6, 89"," 12, 3, 13",null,null,"Indomptable","Une fois par partie, lorsque Karla réussit son jet de Dauntless, elle ajuste sa force au double de la force de la cible de son blocage.","",""]
["19","1","Lord Borak","Lord borak","260000","5","5","3","5","10"," 13, 99, 89, 55, 10"," 10",null,null,"Seigneur du Chaos","L'équipe aui embauche Lord Borak bénéficie d'une relance pour la première mi temps. Il peut la conserver en 2nde mi temps si la relance n'est pas utilisée en 1ere. Si Lord borak est retiré du jeu, la relance est perdue.","",""]
["2","1","Deeproot Strongbranch","Deeptroot StrongBranch","280000","2","7","5","4","11"," 13, 89, 96, 58, 60, 85, 84"," 12, 3",null,null,"Fiable","Lorsque Deeproot fait un echec critique sur une action de lancer de coéquipier, LE joueur qui devait être lancé va rebondir comme prévu, mais il sera automatiquement sur pied.","",""]
["20","1","Mighty Zug","Mighty Zug","220000","4","5","4","6","10"," 13, 89, 55"," 12, 3, 13",null,null,"Coup desctructeur","Une fois par match, lorsque Mighty Zug met au sol un adversaire lors d'un block, vous pouvez ajouter +1 au jet d'armure. L'ajustement peut être fait après le jet de dés","",""]
["21","1","Morg N torg","Mord N Torg","340000","6","6","3","4","11"," 13, 89, 96, 60, 85",null,", 7",null,"La Baliste","Une fois par match, lorsque Morg manque un test de Passe en effectuant une passe ou un lancer de coéquipier, il peut relancer le dé.","",""]
["22","1","Roxanna Darknail","Roxanna Darknail","270000","8","3","1","4","8"," 4, 17, 54, 6, 7, 89"," 8",null,null,"Pointe de vitesse","Une fois par match, roxanna peut tenter de mettre le paquet 3 fois. Vous pouvez déclarer ce pouvoir après avoir mis le paquet 2 fois déjà.","",""]
["23","1","Rumblelaw Sheepskin","Rumblelaw Sheepskin","170000","6","3","3","0","8"," 13, 30, 54, 89, 71, 23, 60"," 12, 3, 13",null,null,"Bélier","Une fois par partie, lorsqe Rumblelaw met au sol un adversaire, suite à un blocage, vous pouvez ajouter +1 au jet de dé. Vous pouvez choisir ce pouvoir une fois les dés lancés.","",""]
["24","1","Akhorne The Squirrel","Akhorne","80000","7","1","2","0","6",null," 14",null,null,"Rage Aveugle","Akhorne peut décider de relancer un D6, lorsqu'il effectue un test d'intrépidité","","White Dwarf 458"]
["25","1","Bryce Cambuel","Bryce Cambuel","130000","5","3","4","0","9"," 66, 89, 95, 77, 58, 60"," 7",null,null,"Flammes fantomatiques","Une fois par mi temps, Lorsque Bryce fait une attaque spéciale de tronçonneuse, lors d'une action de blitz, il peut ajouter +4 au jet d'armure plutôt que +3","The slice","Spike 11"]
["26","1","Wilhelm Chaney","Wilhelm Chaney","220000","8","4","3","4","9"," 1, 26, 17, 89, 95, 24"," 7",null,null,"Mutilation sauvage","Une fois par partie, Lorsque Wilhelm effectue un test de blessure sur un adversaire, il peut relancer le résultat.","","Spike 11"]
["27","1","Frank N Stein","Franck N Stein","250000","4","5","4","0","10"," 51, 89, 55, 95, 58, 60"," 3, 7",null,null,"Blocage un peu brutal","Une fois par partie, Lorsque Frank N stein effectu un jet de blessure sur un adversaire, suite à une action de blocage, il peut décider d'ajouter 1 au résultat. Cet ajout peut se faire après que le résultat du jet de blessure soit connu.","","Spike 11"]
["3","2","Grak et Crumbleberry","Crumbleberry",null,"5","2","3","6","7"," 4, 89, 76, 79, 22"," 14",null,null,"Deux pour le prix d'un","Grak et Crumbleberry doivent être embauchés ensemble. Ils comptent pour 2 star players. Si l'un des 2 est retiré du terrain, pour KO, ou blessure, celui encore en jeu bénéficie de Loner (2+) au lieu de Loner (4+)"]
["3","1","Grak et Crumbleberry","Grak","250000","5","5","4","4","10"," 65, 69, 89, 55, 60"," 14",null,null,"Deux pour le prix d'un","Grak et Crumbleberry doivent être embauchés ensemble. Ils comptent pour 2 star players. Si l'un des 2 est retiré du terrain, pour KO, ou blessure, celui encore en jeu bénéficie de Loner (2+) au lieu de Loner (4+)",""]
["4","1","Grombrindal","Grombrindal","210000","5","3","3","4","10"," 13, 65, 69, 89, 55, 58, 60"," 12, 11, 3, 13",null,null,"Sagesse du Nain Blanc","Une fois par tour, lorsqu'un joueur de l'équipe de Grombrindal en est adjacent, ce joueur gagne soit Esquive en Force, soit Intrépidité, soit Mighty Blow(+1), soit Sure Feet, jusqu'à la fin de son activation.","The White Dwarf",""]
["5","1","Zolcath the Zoat","Zolcath","230000","5","5","4","5","10"," 27, 54, 89, 55, 33, 95, 12"," 8, 11",null,null,"Etes vous un zoat ?","Une fois par partie, lorsque zocath est activé, vous pouvez déclarer qu'il bénéficie de la compétence \"Hypnotic Gaze' pour ce tour","","Basic rules"]
["6","1","Willow Rosebark","Willow Rosebark","150000","5","4","3","6","9"," 14, 89, 9, 60"," 8",null,null,"Indomptable","Une fois par partie, lorsque Willow réussit un test d'intrépidité, elle peut augmnter sa force jusqu'au double de la force de sa cible, le temps de l'action de Blocage.","","Basic rules"]
["7","1","Varag Ghoul-Chewer","Varag","280000","6","5","3","5","10"," 13, 6, 89, 55, 60"," 1, 5",null,null,"Coup destructeur","Une fois par partie, aprsè qu'un block effectué par Varag provoque la chute au sol d'une adversaire, Varag peut ajouter +1 au test d'armure. Il peut effectuer ce pouvoir après avoir lancé les dés.","","Basic rules"]
["8","2","Swift Brothers","Valen Swift",null,"7","3","2","2","8"," 37, 89, 44, 46, 48, 22"," 8",null,null,"Deux pour le prix d'un","Les Frères Swift doivent être embauchés à 2. Ils comptent pour 2 star players. Si l'un des 2 est retiré du jeu, pour KO ou blessure, sur la table des blessures, celui qui reste en jeu change lon trait Loner(4+) par Loner (2+)",null,""]
["8","1","Swift Brothers","Lucien Swift","340000","7","3","2","5","9"," 13, 89, 55, 23"," 8",null,null,"Deux pour le prix d'un","Les Frères Swift doivent être embauchés à 2. Ils comptent pour 2 star players. Si l'un des 2 est retiré du jeu, pour KO ou blessure, sur la table des blessures, celui qui reste en jeu change lon trait Loner(4+) par Loner (2+)","",""]
["9","1","Skrull Halfheight","Skrull HalfHeight","150000","6","3","4","4","9"," 95"," 7, 13",null,null,"Jeu de passe secrète","Une fois par partie, après avoir utilisé la compétence passe pour effectuer une action de passe, Skrull peut décider d'ajouter son score de force au résultat du dé.","",""]

{"sheet":"Stars","index":8,"n_rows":19,"n_cols":38,"rows_kept":19,"cut":false,"hidden":false,"merged":[[11,11,11,14],[9,15,9,31],[11,15,11,31],[7,25,7,26],[7,27,7,34],[16,1,16,9],[13,15,13,34],[14,1,14,9],[17,1,17,9],[16,15,16,34],[17,15,17,34],[1,1,1,13],[1,17,1,29],[14,15,14,34],[15,15,15,34],[13,2,13,9],[5,1,5,4],[5,5,5,13],[5,30,5,34],[7,1,7,3],[7,4,7,9],[8,1,11,9],[5,15,5,17],[15,1,15,9],[7,11,7,14],[7,15,7,23],[9,11,9,14],[15,37,15,40],[16,37,16,40],[17,37,17,40],[5,18,5,26],[8,37,8,41],[11,37,12,42],[14,37,14,40],[6,37,6,41]]}
[]
[null,"Skrull HalfHeight",null,null,null,null,null,null,null,null,null,null,null,null,null,"Or "]
[]
[null,"#",9]
[]
[null,"Star Player set",null,null,null,"Skrull Halfheight",null,null,null,null,null,null,null,null,null,"Surnom",null,null,null,null,null,null,null,null,null,null,null,null,"Price",null,150000,null,null,null,null,null,null,"Category"]
[null,null,null,null,null,null,null,null,null,null,null,null,null,null,null,null,null,null,null,null,null,null,null,null,null,null,null,null,null,null,null,null,null,null,null,null,null,"Passing"]
[null,"special rule",null,null,"Jeu de passe secrète",null,null,null,null,null,null,"Will play for ?",null,null,null,null,null,null,null,null,null,null,null,null,null,"Source",null,null,null,null,null,null,null,null,null,null,null,"Skill"]
[null,"Une fois par partie, après avoir utilisé la compétence passe pour effectuer une action de passe, Skrull peut décider d'ajouter son score de force au résultat du dé.",null,null,null,null,null,null,null,null,null,null,null,null,null,null,null,null,null,null,null,null,null,null,null,null,null,null,null,null,null,null,null,null,null,null,null,"Cannoneer"]
[null,null,null,null,null,null,null,null,null,null,null,"Give Access =>",null,null,null,"Sport de sylvanie, Super-ligue du bord du Monde"]
[]
[null,null,null,null,null,null,null,null,null,null,null,"Forbid Access =>",null,null,null,null,null,null,null,null,null,null,null,null,null,null,null,null,null,null,null,null,null,null,null,null,null,"[Cannoneer] - Select line to add or remove"]
[]
[null,null,"Name",null,null,null,null,null,null,null,"MA","ST","AG","PA","AV","Skills & Traits"]
[null,"Skrull HalfHeight",null,null,null,null,null,null,null,null,6,3,"4+","4+","9+","Regeneration",null,null,null,null,null,null,null,null,null,null,null,null,null,null,null,null,null,null,null,null,null,"Add or Remove"]
[null,null,null,null,null,null,null,null,null,null,null,null,null,null,null,null,null,null,null,null,null,null,null,null,null,null,null,null,null,null,null,null,null,null,null,null,null,"Add or Remove"]
[null,null,null,null,null,null,null,null,null,null,null,null,null,null,null,null,null,null,null,null,null,null,null,null,null,null,null,null,null,null,null,null,null,null,null,null,null,"Add or Remove"]
[null,null,null,null,null,null,null,null,null,null,null,null,null,null,null,null,null,null,null,null,null,null,null,null,null,null,null,null,null,null,null,null,null,null,null,null,null,"Add or Remove"]
[null,1,{"$f":"B19+1","v":2},{"$f":"C19+1","v":3},4,5,6,7,8,9,10,11,12,13,14,15,16,17,18,19,20,21,22,23,24,25,26,27,28,29]

{"sheet":"Draft","index":9,"n_rows":28,"n_cols":37,"rows_kept":28,"cut":false,"hidden":false,"merged":[[1,6,1,8],[0,6,0,8],[8,10,8,11],[5,3,5,4],[6,3,6,4],[7,3,7,4],[8,3,8,4],[4,3,4,4],[4,10,4,11],[5,10,5,11],[6,10,6,11],[7,10,7,11],[20,10,20,11],[9,10,9,11],[10,10,10,11],[11,10,11,11],[12,10,12,11],[13,10,13,11],[14,10,14,11],[15,10,15,11],[16,10,16,11],[17,10,17,11],[18,10,18,11],[19,10,19,11],[20,3,20,4],[9,3,9,4],[10,3,10,4],[11,3,11,4],[12,3,12,4],[13,3,13,4],[14,3,14,4],[15,3,15,4],[16,3,16,4],[17,3,17,4],[18,3,18,4],[19,3,19,4],[22,6,22,8],[23,6,23,8],[24,6,24,8],[25,6,25,8],[26,6,26,8]]}
[null,null,"Select Roster",null,"Select Budget",null,"Select Rule",null,null,null,"Team Name",null,null,null,null,null,null,null,null,null,null,null,null,null,null,null,"Positions","ID","Position","Max","M","FO","AG","PA","AV","Skills & Traits","Price"]
[null,null,"Noblesse Impériale",null,1000000,null,"League",null,null,null,"Bliny",null,null,null,null,null,null,null,null,null,null,null,null,null,null,null,null,0,"- Select"]
[null,null,null,null,null,null,null,null,null,null,null,null,null,null,null,null,null,null,null,null,null,null,null,null,null,null,null,112,"Imperial Retainer Lineman",12,6,3,"4+","4+","8+","Parade",45000]
[null,null,null,null,null,null,null,null,null,null,null,null,null,null,null,null,null,null,null,null,null,null,null,null,null,null,null,113,"Imperial Thrower",2,6,3,"3+","3+","9+","Passe, Passe dans la course",75000]
["#","N°","Position","Name",null,"MA","ST","AG","PA","AV","Skills & Traits",null,"Price",null,null,null,null,null,null,null,null,null,null,null,null,null,null,114,"Noble Blitzers",2,7,3,"3+","4+","9+","Blocage, Reception",105000]
[1,1,"Imperial Retainer Lineman","Imperial Retainer Lineman 1",null,6,3,"4+","4+","8+","Parade",null,45000,null,null,null,null,null,null,null,null,null,null,null,null,null,null,115,"Bodyguard",4,6,3,"3+","5+","9+","Stabilité, Lutte",90000]
[2,2,"Imperial Retainer Lineman","Imperial Retainer Lineman 2",null,6,3,"4+","4+","8+","Parade",null,45000,null,null,null,null,null,null,null,null,null,null,null,null,null,null,116,"Ogre",1,5,5,"4+","5+","10+","Big Guy Limit (1), Cerveau lent, Solitaire (4+), Chataigne (+1), Crâne épais, Lancer de coéquipier",140000]
[3,3,"Imperial Retainer Lineman","Imperial Retainer Lineman 3",null,6,3,"4+","4+","8+","Parade",null,45000,null,null,null,null,null,null,null,null,null,null,null,null,null,null,null,null,null,null,null,null,null,null,"Always hungry, Loner (3+), Mighty Blow (+1), Projectile vomit, Really stupid, Regeneration, Throw team-mate",115000]
[4,4,"Imperial Retainer Lineman","Imperial Retainer Lineman 4",null,6,3,"4+","4+","8+","Parade",null,45000,null,null,null,null,null,null,null,null,null,null,null,null,null,null,null,null,null,null,null,null,null,null,"Always hungry, Big Guy Limit (1), Loner (4+), Mighty Blow (+1), Projectile vomit, Really stupid, Regeneration, Throw team-mate",115000]
[5,null,null,null,null,null,null,null,null,null,null,null,0,null,null,null,null,null,null,null,null,null,null,null,null,null,null,null,null,null,null,null,null,null,null,"Animal savagery, Big Guy Limit (1), Frenzy, Loner (4+), Mighty Blow (+1), Prehensive tail",150000]
[6,null,null,null,null,null,null,null,null,null,null,null,0,null,null,null,null,null,null,null,null,null,null,null,null,null,null,null,null,null,null,null,null,null,null,"Animosity (other races), Dodge, Right Stuff, Stunty",30000]
[7,null,null,null,null,null,null,null,null,null,null,null,0,null,null,null,null,null,null,null,null,null,null,null,null,null,null,null,null,null,null,null,null,null,null,"Big Guy Limit (1), Bonehead, Loner (4+), Mighty Blow (+1), Thick skull, Throw team-mate",140000]
[8,8,"Bodyguard","Bodyguard 8",null,6,3,"3+","5+","9+","Stabilité, Lutte",null,90000,null,null,null,null,null,null,null,null,null,null,null,null,null,null,null,null,null,null,null,null,null,null,"Big Guy Limit (1), Loner (4+), Mighty Blow (+1), Stand firm, Strong arm, Take root, Thick skull, Throw team-mate, Timmm-ber",120000]
[9,9,"Bodyguard","Bodyguard 9",null,6,3,"3+","5+","9+","Stabilité, Lutte",null,90000]
[10,10,"Bodyguard","Bodyguard 10",null,6,3,"3+","5+","9+","Stabilité, Lutte",null,90000]
[11,null,null,null,null,null,null,null,null,null,null,null,0]
[12,12,"Noble Blitzers","Noble Blitzers 12",null,7,3,"3+","4+","9+","Blocage, Reception",null,105000]
[13,null,null,null,null,null,null,null,null,null,null,null,0]
[14,14,"Imperial Thrower","Imperial Thrower 14",null,6,3,"3+","3+","9+","Passe, Passe dans la course",null,75000]
[15,15,"Imperial Thrower","Imperial Thrower 15",null,6,3,"3+","3+","9+","Passe, Passe dans la course",null,75000]
[16,16,"Ogre","Ogre 16",null,5,5,"4+","5+","10+","Big Guy Limit (1), Cerveau lent, Solitaire (4+), Chataigne (+1), Crâne épais, Lancer de coéquipier",null,140000]
[null,null,null,null,null,null,null,null,null,null,null,"Player Prices",{"$f":"SUM(M6:M21)","v":845000}]
[null,null,"Treasure",null,"# Players",null,"Assistants",null,null,0,null,10000,{"$f":"L23*J23","v":0}]
[null,null,{"$f":"E2-(M22+M28)","v":15000},null,{"$f":"COUNTIF(M6:M21,\"<>0\")","v":11},null,"Cheerleaders",null,null,0,null,10000,{"$f":"L24*J24","v":0}]
[null,null,null,null,null,null,"Apothecary",null,null,0,null,50000,0]
[null,null,"Coach",null,null,null,"Dedicated Fans",null,null,1,null,10000,{"$f":"L26*(J26-1)","v":0}]
[null,null,"Bibi",null,null,null,"Rerolls",null,null,2,null,70000,140000]
[null,null,null,null,null,null,null,null,null,null,null,"Staff Price",{"$f":"M23+M24+M25+M26+M27","v":140000}]

{"sheet":"Team","index":10,"n_rows":37,"n_cols":70,"rows_kept":37,"cut":false,"hidden":false,"merged":[[25,61,25,65],[16,61,16,65],[17,61,17,65],[18,61,18,65],[19,61,19,65],[20,61,20,65],[21,61,21,65],[22,61,22,65],[23,61,23,65],[24,61,24,65],[0,61,0,63],[0,64,0,66],[0,67,0,70],[10,61,10,65],[11,61,11,65],[12,61,12,65],[13,61,13,65],[14,61,14,65],[15,61,15,65],[8,61,8,70],[4,61,4,65],[5,61,5,65],[6,61,6,65],[7,61,7,65],[2,66,2,70],[3,66,3,70],[4,66,4,70],[5,66,5,70],[6,66,6,70],[7,66,7,70],[1,61,1,62],[1,63,1,64],[1,65,1,66],[1,67,1,68],[26,2,26,9],[26,10,26,17],[26,23,26,34],[26,42,26,43],[26,44,26,45],[26,47,26,49],[26,50,26,52],[26,53,26,55],[1,15,6,20],[10,53,10,55],[11,53,11,55],[12,53,12,55],[13,53,13,55],[9,53,9,55],[8,47,8,55],[3,31,3,33],[4,31,4,33],[5,31,5,33],[12,47,12,49],[12,50,12,52],[10,42,10,43],[10,44,10,45],[4,42,4,45],[2,38,2,41],[31,2,31,9],[31,10,31,17],[31,23,31,34],[31,42,31,43],[31,44,31,45],[31,47,31,49],[31,50,31,52],[31,53,31,55],[32,2,32,9],[32,10,32,17],[32,23,32,34],[32,42,32,43],[32,44,32,45],[32,47,32,49],[32,50,32,52],[32,53,32,55],[29,2,29,9],[29,10,29,17],[29,23,29,34],[29,42,29,43],[29,44,29,45],[29,47,29,49],[29,50,29,52],[29,53,29,55],[30,2,30,9],[30,10,30,17],[30,23,30,34],[30,42,30,43],[30,44,30,45],[30,47,30,49],[30,50,30,52],[30,53,30,55],[27,2,27,9],[27,10,27,17],[27,23,27,34],[27,42,27,43],[27,44,27,45],[27,47,27,49],[27,50,27,52],[27,53,27,55],[28,2,28,9],[28,10,28,17],[28,23,28,34],[28,42,28,43],[28,44,28,45],[28,47,28,49],[28,50,28,52],[28,53,28,55],[3,38,3,41],[4,38,4,41],[1,1,1,4],[2,1,2,4],[1,45,1,49],[2,46,2,49],[3,46,3,49],[4,46,4,49],[1,43,1,44],[24,53,24,55],[25,53,25,55],[24,2,24,9],[24,10,24,17],[24,23,24,34],[24,42,24,43],[24,44,24,45],[1,31,1,33],[1,5,1,13],[2,5,2,13],[2,22,2,26],[1,22,1,30],[2,29,2,30],[2,31,2,33],[1,38,1,42],[3,29,3,30],[3,5,3,13],[4,29,4,30],[5,29,5,30],[3,22,3,26],[4,22,4,26],[5,22,5,26],[2,42,2,45],[3,42,3,45],[24,47,24,49],[24,50,24,52],[25,2,25,9],[25,10,25,17],[25,23,25,34],[25,42,25,43],[25,44,25,45],[25,47,25,49],[25,50,25,52],[23,2,23,9],[23,10,23,17],[23,23,23,34],[23,42,23,43],[23,44,23,45],[23,47,23,49],[23,50,23,52],[22,53,22,55],[23,53,23,55],[22,2,22,9],[22,10,22,17],[22,23,22,34],[22,42,22,43],[22,44,22,45],[20,53,20,55],[21,53,21,55],[20,2,20,9],[20,10,20,17],[20,23,20,34],[20,42,20,43],[20,44,20,45],[22,47,22,49],[22,50,22,52],[20,47,20,49],[20,50,20,52],[21,2,21,9],[21,10,21,17],[21,23,21,34],[21,42,21,43],[21,44,21,45],[21,47,21,49],[21,50,21,52],[19,2,19,9],[19,10,19,17],[19,23,19,34],[19,42,19,43],[19,44,19,45],[19,47,19,49],[19,50,19,52],[18,53,18,55],[19,53,19,55],[18,2,18,9],[18,10,18,17],[18,23,18,34],[18,42,18,43],[18,44,18,45],[18,47,18,49],[18,50,18,52],[16,47,16,49],[16,50,16,52],[17,2,17,9],[17,10,17,17],[17,23,17,34],[17,42,17,43],[17,44,17,45],[17,47,17,49],[17,50,17,52],[11,50,11,52],[10,50,10,52],[16,53,16,55],[17,53,17,55],[16,2,16,9],[16,10,16,17],[16,23,16,34],[16,42,16,43],[16,44,16,45],[15,23,15,34],[15,42,15,43],[15,44,15,45],[15,47,15,49],[15,50,15,52],[15,53,15,55],[14,2,14,9],[14,10,14,17],[14,23,14,34],[14,42,14,43],[14,44,14,45],[14,53,14,55],[14,47,14,49],[14,50,14,52],[15,2,15,9],[15,10,15,17],[8,42,8,46],[5,6,5,9],[11,2,11,9],[11,10,11,17],[11,23,11,34],[11,42,11,43],[11,44,11,45],[11,47,11,49],[10,47,10,49],[10,2,10,9],[10,10,10,17],[10,23,10,34],[9,2,9,9],[9,10,9,17],[9,23,9,34],[8,35,8,41],[5,1,5,5],[6,1,6,5],[6,6,6,9],[7,31,7,34],[9,44,9,45],[9,42,9,43],[9,47,9,49],[36,2,36,9],[36,10,36,17],[36,23,36,34],[36,42,36,43],[36,44,36,45],[36,47,36,49],[36,50,36,52],[36,53,36,55],[33,53,33,55],[34,2,34,9],[34,10,34,17],[34,23,34,34],[34,42,34,43],[34,44,34,45],[34,47,34,49],[34,50,34,52],[34,53,34,55],[33,2,33,9],[33,10,33,17],[33,23,33,34],[33,42,33,43],[33,44,33,45],[33,47,33,49],[33,50,33,52],[1,69,1,70],[2,61,2,65],[3,61,3,65],[35,2,35,9],[35,10,35,17],[35,23,35,34],[35,42,35,43],[35,44,35,45],[35,47,35,49],[35,50,35,52],[35,53,35,55],[9,50,9,52],[13,2,13,9],[13,10,13,17],[13,23,13,34],[13,42,13,43],[13,44,13,45],[13,47,13,49],[13,50,13,52],[12,2,12,9],[12,10,12,17],[12,23,12,34],[12,42,12,43],[12,44,12,45]]}
[null,null,null,null,null,null,null,null,null,null,null,null,null,null,null,null,null,null,null,null,null,null,null,null,null,null,null,null,null,null,null,null,null,null,null,null,null,null,null,null,null,null,null,null,null,null,null,null,null,null,null,null,null,null,null,null,null,null,null,null,null,"Skill",null,null,"Wound",null,null,"Charac."]
[null,"Coach",null,null,null,"Bibi",null,null,null,null,null,null,null,null,null,"Badge",null,null,null,null,null,null,"Staff  and Value",null,null,null,null,null,null,null,null,{"$f":"SUM(AF3:AF6)","v":140000},null,null,null,null,null,null,"TOTAL",null,null,null,null,null,null,"Current",null,null,null,null,null,null,null,null,null,null,null,null,null,null,null,"Agilité",null,"Général",null,"Passe",null,"Force",null,"Mutation"]
[null,"Roster",null,null,null,"Noblesse Impériale",null,null,null,null,null,null,null,null,null,null,null,null,null,null,null,null,"Assistants",null,null,null,null,0,"X",10000,null,{"$f":"AB3*AD3","v":0},null,null,null,null,null,null,{"$f":"COUNTIF(BB11:BD37,\">0\")","v":11},null,null,null,"Players",null,null,null,{"$f":"COUNTIFS(BB11:BB37,\">0\",BE11:BE37,\"<>1\",BG11:BG37,\"<>1\")","v":11},null,null,null,null,null,null,null,null,null,null,null,null,null,null,"Arm bar",null,null,null,null,"Juggernaut"]
[null,"Team Name",null,null,null,"Bliny",null,null,null,null,null,null,null,null,null,null,null,null,null,null,null,null,"Cheerleaders",null,null,null,null,0,"X",10000,null,{"$f":"AB4*AD4","v":0},null,null,null,null,null,null,{"$f":"SUM(BB11:BD37)","v":845000},null,null,null,"Player Value",null,null,null,{"$f":"SUMIFS(BB11:BB37,BE11:BE37,\"<>1\",BG11:BG37,\"<>1\")","v":845000},null,null,null,null,null,null,null,null,null,null,null,null,null,null,"Brawler",null,null,null,null,"Mighty Blow (+1)"]
[null,null,null,null,null,null,null,null,null,null,null,null,null,null,null,null,null,null,null,null,null,null,"Apothecary",null,null,null,null,0,"x",50000,null,{"$f":"AB5*AD5","v":0},null,null,null,null,null,null,{"$f":"AM4+AF2","v":985000},null,null,null,"TTV<=>CTV",null,null,null,{"$f":"AU4+AF2","v":985000},null,null,null,null,null,null,null,null,null,null,null,null,null,null,"Break tackle",null,null,null,null,"Multiple block"]
[null,"Dedicated Fans",null,null,null,null,1,null,null,null,null,null,null,null,null,null,null,null,null,null,null,null,"Rerolls",null,null,null,null,2,"x",70000,null,{"$f":"AB6*AD6","v":140000},null,null,null,null,null,null,null,null,null,null,null,null,null,null,null,null,null,null,null,null,null,null,null,null,null,null,null,null,null,"Crâne épais",null,null,null,null,"Pile driver"]
[null,"Treasure",null,null,null,null,15000,null,null,null,null,null,null,null,null,null,null,null,null,null,null,null,null,null,null,null,null,null,null,null,null,null,null,null,null,null,null,null,null,null,null,null,null,null,null,null,null,null,null,null,null,null,null,null,null,null,null,null,null,null,null,"Grab",null,null,null,null,"Stand firm"]
[null,null,null,null,null,null,null,null,null,null,null,null,null,null,null,null,null,null,null,null,null,null,null,null,null,null,null,null,null,null,null,"Stats all team",null,null,null,null,null,null,null,0,0,null,null,null,null,null,null,null,null,null,null,null,null,null,null,null,null,null,null,null,null,"Guard",null,null,null,null,"Strong arm"]
[null,null,null,null,null,null,null,null,null,null,null,null,null,null,null,null,null,null,null,null,null,null,null,null,null,null,null,null,null,null,null,null,null,null,null,"Stats",null,null,null,null,null,null,"SPP",null,null,null,null,"Value",null,null,null,null,null,null,null,null,null,null,null,null,null,"Skill Pile driver - Select player"]
["#","N°","Name",null,null,null,null,null,null,null,"Position",null,null,null,null,null,null,null,"MA","ST","AG","PA","AV","Skills & Traits",null,null,null,null,null,null,null,null,null,null,null,"Co","Th","De","In","Cas","TD","MVP","Unspent",null,"Spent",null,"Lvl","Hiring",null,null,"Gain",null,null,"Current",null,null,"MNG","NI","TR"]
[1,1,"Imperial Retainer Lineman 1",null,null,null,null,null,null,null,"Imperial Retainer Lineman",null,null,null,null,null,null,null,6,3,"4+","4+","8+","Parade",null,null,null,null,null,null,null,null,null,null,null,0,0,0,0,0,0,0,0,null,0,null,0,45000,null,null,null,null,null,{"$f":"IF(AV11<>\"\",AV11+AY11,\"\")","v":45000},null,null,null,null,null,null,null,{"$f":"_xlfn.CONCAT(\"<= Player \" & A11)","v":"<= Player 1"}]
[2,2,"Imperial Retainer Lineman 2",null,null,null,null,null,null,null,"Imperial Retainer Lineman",null,null,null,null,null,null,null,6,3,"4+","4+","8+","Parade",null,null,null,null,null,null,null,null,null,null,null,0,0,0,0,0,0,0,0,null,0,null,0,45000,null,null,null,null,null,{"$f":"IF(AV12<>\"\",AV12+AY12,\"\")","v":45000},null,null,null,null,null,null,null,{"$f":"_xlfn.CONCAT(\"<= Player \" & A12)","v":"<= Player 2"}]
[3,3,"Imperial Retainer Lineman 3",null,null,null,null,null,null,null,"Imperial Retainer Lineman",null,null,null,null,null,null,null,6,3,"4+","4+","8+","Parade",null,null,null,null,null,null,null,null,null,null,null,0,0,0,0,0,0,0,0,null,0,null,0,45000,null,null,null,null,null,45000,null,null,null,null,null,null,null,{"$f":"_xlfn.CONCAT(\"<= Player \" & A13)","v":"<= Player 3"}]
[4,4,"Imperial Retainer Lineman 4",null,null,null,null,null,null,null,"Imperial Retainer Lineman",null,null,null,null,null,null,null,6,3,"4+","4+","8+","Parade",null,null,null,null,null,null,null,null,null,null,null,0,0,0,0,0,0,0,0,null,0,null,0,45000,null,null,null,null,null,45000,null,null,null,null,null,null,null,"<= Player 4"]
[5,null,null,null,null,null,null,null,null,null,null,null,null,null,null,null,null,null,null,null,null,null,null,null,null,null,null,null,null,null,null,null,null,null,null,null,null,null,null,null,null,null,null,null,null,null,null,null,null,null,null,null,null,"",null,null,null,null,null,null,null,"<= Player 5"]
[6,null,null,null,null,null,null,null,null,null,null,null,null,null,null,null,null,null,null,null,null,null,null,null,null,null,null,null,null,null,null,null,null,null,null,null,null,null,null,null,null,null,null,null,null,null,null,null,null,null,null,null,null,"",null,null,null,null,null,null,null,"<= Player 6"]
[7,null,null,null,null,null,null,null,null,null,null,null,null,null,null,null,null,null,null,null,null,null,null,null,null,null,null,null,null,null,null,null,null,null,null,null,null,null,null,null,null,null,null,null,null,null,null,null,null,null,null,null,null,"",null,null,null,null,null,null,null,"<= Player 7"]
[8,8,"Bodyguard 8",null,null,null,null,null,null,null,"Bodyguard",null,null,null,null,null,null,null,6,3,"3+","5+","9+","Stabilité, Lutte",null,null,null,null,null,null,null,null,null,null,null,0,0,0,0,0,0,0,0,null,0,null,0,90000,null,null,null,null,null,90000,null,null,null,null,null,null,null,"<= Player 8"]
[9,9,"Bodyguard 9",null,null,null,null,null,null,null,"Bodyguard",null,null,null,null,null,null,null,6,3,"3+","5+","9+","Stabilité, Lutte",null,null,null,null,null,null,null,null,null,null,null,0,0,0,0,0,0,0,0,null,0,null,0,90000,null,null,null,null,null,90000,null,null,null,null,null,null,null,"<= Player 9"]
[10,10,"Bodyguard 10",null,null,null,null,null,null,null,"Bodyguard",null,null,null,null,null,null,null,6,3,"3+","5+","9+","Stabilité, Lutte",null,null,null,null,null,null,null,null,null,null,null,0,0,0,0,0,0,0,0,null,0,null,0,90000,null,null,null,null,null,90000,null,null,null,null,null,null,null,"<= Player 10"]
[11,null,null,null,null,null,null,null,null,null,null,null,null,null,null,null,null,null,null,null,null,null,null,null,null,null,null,null,null,null,null,null,null,null,null,null,null,null,null,null,null,null,null,null,null,null,null,null,null,null,null,null,null,"",null,null,null,null,null,null,null,"<= Player 11"]
[12,12,"Noble Blitzers 12",null,null,null,null,null,null,null,"Noble Blitzers",null,null,null,null,null,null,null,7,3,"3+","4+","9+","Blocage, Reception",null,null,null,null,null,null,null,null,null,null,null,0,0,0,0,0,0,0,0,null,0,null,0,105000,null,null,null,null,null,105000,null,null,null,null,null,null,null,"<= Player 12"]
[13,null,null,null,null,null,null,null,null,null,null,null,null,null,null,null,null,null,null,null,null,null,null,null,null,null,null,null,null,null,null,null,null,null,null,null,null,null,null,null,null,null,null,null,null,null,null,null,null,null,null,null,null,"",null,null,null,null,null,null,null,"<= Player 13"]
[14,14,"Imperial Thrower 14",null,null,null,null,null,null,null,"Imperial Thrower",null,null,null,null,null,null,null,6,3,"3+","3+","9+","Passe, Passe dans la course",null,null,null,null,null,null,null,null,null,null,null,0,0,0,0,0,0,0,0,null,0,null,0,75000,null,null,null,null,null,75000,null,null,null,null,null,null,null,"<= Player 14"]
[15,15,"Imperial Thrower 15",null,null,null,null,null,null,null,"Imperial Thrower",null,null,null,null,null,null,null,6,3,"3+","3+","9+","Passe, Passe dans la course",null,null,null,null,null,null,null,null,null,null,null,0,0,0,0,0,0,0,0,null,0,null,0,75000,null,null,null,null,null,75000,null,null,null,null,null,null,null,"<= Player 15"]
[16,16,"Ogre 16",null,null,null,null,null,null,null,"Ogre",null,null,null,null,null,null,null,5,5,"4+","5+","10+","Big Guy Limit (1), Cerveau lent, Solitaire (4+), Chataigne (+1), Crâne épais, Lancer de coéquipier",null,null,null,null,null,null,null,null,null,null,null,0,0,0,0,0,0,0,0,null,0,null,0,140000,null,null,null,null,null,140000,null,null,null,null,null,null,null,"<= Player 16"]
["#","N°","Name",null,null,null,null,null,null,null,"Position",null,null,null,null,null,null,null,"MA","ST","AG","PA","AV","Skills & Traits",null,null,null,null,null,null,null,null,null,null,null,"Co","Th","De","In","Cas","TD","MVP","Unspent",null,"Spent",null,"Lvl","Hiring",null,null,"Gain",null,null,"Current",null,null,"MNG","NI","TR"]
[17,null,null,null,null,null,null,null,null,null,null,null,null,null,null,null,null,null,null,null,null,null,null,null,null,null,null,null,null,null,null,null,null,null,null,null,null,null,null,null,null,null,null,null,null,null,null,null,null,null,null,null,null,{"$f":"IF(AV28<>\"\",AV28+AY28,\"\")","v":""}]
[18,null,null,null,null,null,null,null,null,null,null,null,null,null,null,null,null,null,null,null,null,null,null,null,null,null,null,null,null,null,null,null,null,null,null,null,null,null,null,null,null,null,null,null,null,null,null,null,null,null,null,null,null,""]
[19,null,null,null,null,null,null,null,null,null,null,null,null,null,null,null,null,null,null,null,null,null,null,null,null,null,null,null,null,null,null,null,null,null,null,null,null,null,null,null,null,null,null,null,null,null,null,null,null,null,null,null,null,""]
[20,null,null,null,null,null,null,null,null,null,null,null,null,null,null,null,null,null,null,null,null,null,null,null,null,null,null,null,null,null,null,null,null,null,null,null,null,null,null,null,null,null,null,null,null,null,null,null,null,null,null,null,null,""]
[21,null,null,null,null,null,null,null,null,null,null,null,null,null,null,null,null,null,null,null,null,null,null,null,null,null,null,null,null,null,null,null,null,null,null,null,null,null,null,null,null,null,null,null,null,null,null,null,null,null,null,null,null,""]
[22,null,null,null,null,null,null,null,null,null,null,null,null,null,null,null,null,null,null,null,null,null,null,null,null,null,null,null,null,null,null,null,null,null,null,null,null,null,null,null,null,null,null,null,null,null,null,null,null,null,null,null,null,""]
[23,null,null,null,null,null,null,null,null,null,null,null,null,null,null,null,null,null,null,null,null,null,null,null,null,null,null,null,null,null,null,null,null,null,null,null,null,null,null,null,null,null,null,null,null,null,null,null,null,null,null,null,null,""]
[24,null,null,null,null,null,null,null,null,null,null,null,null,null,null,null,null,null,null,null,null,null,null,null,null,null,null,null,null,null,null,null,null,null,null,null,null,null,null,null,null,null,null,null,null,null,null,null,null,null,null,null,null,""]
[25,null,null,null,null,null,null,null,null,null,null,null,null,null,null,null,null,null,null,null,null,null,null,null,null,null,null,null,null,null,null,null,null,null,null,null,null,null,null,null,null,null,null,null,null,null,null,null,null,null,null,null,null,""]
[26,null,null,null,null,null,null,null,null,null,null,null,null,null,null,null,null,null,null,null,null,null,null,null,null,null,null,null,null,null,null,null,null,null,null,null,null,null,null,null,null,null,null,null,null,null,null,null,null,null,null,null,null,""]

{"sheet":"Leveling","index":11,"n_rows":8,"n_cols":11,"rows_kept":8,"cut":false,"hidden":true,"merged":[]}
[null,"Value ->",10000,20000,20000,40000,"Varies",null,null,"Charac.","Added value"]
["current level","Next level","Random Prim.","Choose Prim.","Random Sec.","Choos Sec.","Characteristic",null,null,"MA",20000]
[0,{"$f":"A3+1","v":1},3,6,6,12,18,null,null,"AV",10000]
[1,{"$f":"A4+1","v":2},4,8,8,14,20,null,null,"PA",20000]
[2,3,6,12,12,18,24,null,null,"AG",40000]
[3,4,8,16,16,22,28,null,null,"FO",80000]
[4,5,10,20,20,26,32]
[5,6,15,30,30,40,50]

{"sheet":"TeamLog","index":12,"n_rows":14,"n_cols":16,"rows_kept":14,"cut":false,"hidden":true,"merged":[]}
["Id","date","Phase","Action","Arg 1","Arg 2","Arg 3","Arg 4","Arg 5","Arg 6","Arg 7","Arg 8","Arg 9","Arg 10"]
[1,"2021-01-02T11:25:17","CREATION","BASE","Noblesse Impériale","Bliny","Bibi",15000,1,11]
[2,"2021-01-02T11:25:17","CREATION","STAFF",0,0,0,2,70000]
[3,"2021-01-02T11:25:17","CREATION","PLAYER1",1,"Imperial Retainer Lineman","Imperial Retainer Lineman 1",null,6,3,"4+","4+","8+","Parade",null,45000]
[4,"2021-01-02T11:25:17","CREATION","PLAYER2",2,"Imperial Retainer Lineman","Imperial Retainer Lineman 2",null,6,3,"4+","4+","8+","Parade",null,45000]
[5,"2021-01-02T11:25:17","CREATION","PLAYER3",3,"Imperial Retainer Lineman","Imperial Retainer Lineman 3",null,6,3,"4+","4+","8+","Parade",null,45000]
[6,"2021-01-02T11:25:17","CREATION","PLAYER4",4,"Imperial Retainer Lineman","Imperial Retainer Lineman 4",null,6,3,"4+","4+","8+","Parade",null,45000]
[7,"2021-01-02T11:25:17","CREATION","PLAYER8",8,"Bodyguard","Bodyguard 8",null,6,3,"3+","5+","9+","Stabilité, Lutte",null,90000]
[8,"2021-01-02T11:25:17","CREATION","PLAYER9",9,"Bodyguard","Bodyguard 9",null,6,3,"3+","5+","9+","Stabilité, Lutte",null,90000]
[9,"2021-01-02T11:25:17","CREATION","PLAYER10",10,"Bodyguard","Bodyguard 10",null,6,3,"3+","5+","9+","Stabilité, Lutte",null,90000]
[10,"2021-01-02T11:25:17","CREATION","PLAYER12",12,"Noble Blitzers","Noble Blitzers 12",null,7,3,"3+","4+","9+","Blocage, Reception",null,105000]
[11,"2021-01-02T11:25:17","CREATION","PLAYER14",14,"Imperial Thrower","Imperial Thrower 14",null,6,3,"3+","3+","9+","Passe, Passe dans la course",null,75000]
[12,"2021-01-02T11:25:17","CREATION","PLAYER15",15,"Imperial Thrower","Imperial Thrower 15",null,6,3,"3+","3+","9+","Passe, Passe dans la course",null,75000]
[13,"2021-01-02T11:25:17","CREATION","PLAYER16",16,"Ogre","Ogre 16",null,5,5,"4+","5+","10+","Big Guy Limit (1), Cerveau lent, Solitaire (4+), Chataigne (+1), Crâne épais, Lancer de coéquipier",null,140000]

{"sheet":"Configuration","index":13,"n_rows":18,"n_cols":47,"rows_kept":18,"cut":false,"hidden":false,"merged":[[9,1,9,6],[10,1,10,6],[11,1,11,6],[12,1,12,6],[2,0,2,2],[8,1,8,6],[1,0,1,11],[4,1,4,6],[5,1,5,6],[6,1,6,6],[7,1,7,6],[2,42,2,45],[2,46,2,55],[1,42,1,55],[3,42,3,45],[3,46,3,55],[4,42,4,45],[4,46,4,55],[5,42,5,45],[5,46,5,55],[6,42,6,45],[6,46,6,55],[7,42,7,45],[7,46,7,55],[8,42,8,45],[8,46,8,55],[9,42,9,45],[9,46,9,55],[10,42,10,45],[10,46,10,55],[11,42,11,45],[11,46,11,55],[12,42,12,45],[12,46,12,55],[13,46,13,55],[14,42,14,45],[14,46,14,55],[15,42,15,45],[15,46,15,55],[22,42,22,45],[22,46,22,55],[0,42,0,55],[19,42,19,45],[19,46,19,55],[20,42,20,45],[20,46,20,55],[21,42,21,45],[21,46,21,55],[16,42,16,45],[16,46,16,55],[17,42,17,45],[17,46,17,55],[18,42,18,45],[18,46,18,55],[13,42,13,45]]}
[null,null,null,null,null,null,null,null,null,null,null,null,null,null,null,null,null,null,null,null,null,null,null,null,null,null,null,null,null,null,null,null,null,null,null,null,null,null,null,null,null,null,"dummy text"]
["Traduction",null,null,null,null,null,null,null,null,null,null,null,null,null,null,null,null,null,null,null,null,null,null,null,null,null,null,null,null,null,null,null,null,null,null,null,null,null,null,null,null,null,"Labels"]
["Appliquer langue",null,null,"FR",null,null,null,null,null,null,null,null,null,null,null,null,null,null,null,null,null,null,null,null,null,null,null,null,null,null,null,null,null,null,null,null,null,null,null,null,null,null,"Key",null,null,null,"Text"]
[null,null,null,null,null,null,null,null,null,null,null,null,null,null,null,null,null,null,null,null,null,null,null,null,null,null,null,null,null,null,null,null,null,null,null,null,null,null,null,null,null,null,"A_Configuration_Label_Translation",null,null,null,"Traduction"]
[null,"Position names",null,null,null,null,null,2,null,null,null,null,null,null,null,null,null,null,null,null,null,null,null,null,null,null,null,null,null,null,null,null,null,null,null,null,null,null,null,null,null,null,"A_Configuration_Label_ChooseL",null,null,null,"Appliquer langue"]
[null,"Roster names",null,null,null,null,null,30,null,null,null,null,null,null,null,null,null,null,null,null,null,null,null,null,null,null,null,null,null,null,null,null,null,null,null,null,null,null,null,null,null,null,"A_Configuration_Label_Danger",null,null,null,"La traduction est une opération délicate. Avez-vous une copie du fichier ?"]
[null,"Skill categories",null,null,null,null,null,6,null,null,null,null,null,null,null,null,null,null,null,null,null,null,null,null,null,null,null,null,null,null,null,null,null,null,null,null,null,null,null,null,null,null,"A_Label_Error",null,null,null,"Zone de texte Indéfinie"]
[null,"Skill names",null,null,null,null,null,99,null,null,null,null,null,null,null,null,null,null,null,null,null,null,null,null,null,null,null,null,null,null,null,null,null,null,null,null,null,null,null,null,null,null,"A_Roster_Label_GetRoster",null,null,null,"Choisit un roster"]
[null,"Star player names",null,null,null,null,null,0,null,null,null,null,null,null,null,null,null,null,null,null,null,null,null,null,null,null,null,null,null,null,null,null,null,null,null,null,null,null,null,null,null,null,"A_Roster_Label_CreateRoster",null,null,null,"Créer un nouveau roster"]
[null,"Star Player special rule names",null,null,null,null,null,25,null,null,null,null,null,null,null,null,null,null,null,null,null,null,null,null,null,null,null,null,null,null,null,null,null,null,null,null,null,null,null,null,null,null,"A_Roster_Label_Reroll",null,null,null,"Relance"]
[null,"Star Player spec. rule descriptions",null,null,null,null,null,2,null,null,null,null,null,null,null,null,null,null,null,null,null,null,null,null,null,null,null,null,null,null,null,null,null,null,null,null,null,null,null,null,null,null,"A_Roster_Label_Apothicary",null,null,null,"Apoticaire"]
[null,"Labels",null,null,null,null,null,14,null,null,null,null,null,null,null,null,null,null,null,null,null,null,null,null,null,null,null,null,null,null,null,null,null,null,null,null,null,null,null,null,null,null,"A_Roster_Label_SR",null,null,null,"Règles spéciales"]
[null,"Special Rule names",null,null,null,null,null,17,null,null,null,null,null,null,null,null,null,null,null,null,null,null,null,null,null,null,null,null,null,null,null,null,null,null,null,null,null,null,null,null,null,null,"A_roster_Label_Primary",null,null,null,"Princip."]
[null,null,null,null,null,null,null,null,null,null,null,null,null,null,null,null,null,null,null,null,null,null,null,null,null,null,null,null,null,null,null,null,null,null,null,null,null,null,null,null,null,null,"A_roster_Label_Secondary",null,null,null,"Second."]
[null,null,null,null,null,null,null,null,null,null,null,null,null,null,null,null,null,null,null,null,null,null,null,null,null,null,null,null,null,null,null,null,null,null,null,null,null,null,null,null,null,null,"A_Roster_Label_SkillTrait",null,null,null,"Compétences & Traits"]
[null,null,null,null,null,null,null,null,null,null,null,null,null,null,null,null,null,null,null,null,null,null,null,null,null,null,null,null,null,null,null,null,null,null,null,null,null,null,null,null,null,null,"A_roster_Label_cost",null,null,null,"Coût"]
[null,null,null,null,null,null,null,null,null,null,null,null,null,null,null,null,null,null,null,null,null,null,null,null,null,null,null,null,null,null,null,null,null,null,null,null,null,null,null,null,null,null,"A_Roster_Label_RemoveAddSkill",null,null,null,"Ajout ou retire comp."]
[null,null,null,null,null,null,null,null,null,null,null,null,null,null,null,null,null,null,null,null,null,null,null,null,null,null,null,null,null,null,null,null,null,null,null,null,null,null,null,null,null,null,"A_Roster_Label_SelectSkill",null,null,null,"Select. Comp."]

{"sheet":"Positions","index":14,"n_rows":155,"n_cols":13,"rows_kept":155,"cut":false,"hidden":true,"merged":[]}
["ID","Rosters_ID","Max","Name","Cost","MA","ST","AG","PA","AV","Primary","Secondary","Image"]
[112,4,12,"Imperial Retainer Lineman",45000,6,3,4,4,8,"G","AS"]
[113,4,2,"Imperial Thrower",75000,6,3,3,3,9,"GP","AS"]
[114,4,2,"Noble Blitzers",105000,7,3,3,4,9,"AG","S"]
[115,4,4,"Bodyguard",90000,6,3,3,5,9,"GS","A"]
[116,4,1,"Ogre",140000,5,5,4,5,10,"S","AG"]
[125,17,16,"Halfling Lineman",30000,5,2,3,4,7,"A","GS"]
[126,17,2,"Halfling Hefty",50000,5,2,3,3,8,"AP","GS"]
[127,17,2,"Halfling Catcher",55000,5,2,3,5,7,"A","GS"]
[128,17,2,"Altern forest Treeman",120000,2,6,5,5,11,"S","AGP"]
[168,19,12,"Dark Elf Lineman",70000,6,3,2,4,9,"AG","S"]
[169,19,2,"Dark Elf runner",80000,6,3,2,2,8,"AGP","S"]
[170,19,4,"Dark Elf Blitzer",100000,8,3,2,4,9,"AG","PS"]
[171,19,2,"Dark elf Assassin",85000,7,3,2,5,8,"AG","PS"]
[172,19,2,"Witch Elf",110000,7,3,2,5,8,"AG","PS"]
[173,13,16,"Dwarf Lineman",70000,4,3,4,5,10,"GS","A"]
[174,13,2,"Dwarf runner",85000,6,3,3,4,9,"GP","AS"]
[175,13,2,"Dwarf Blitzer",80000,5,3,3,4,10,"GS","AP"]
[176,13,2,"Troll slayer",95000,5,3,4,0,9,"GS","A"]
[177,13,1,"Roulemort",170000,4,7,5,0,11,"S","AG"]
[178,14,16,"Elf Lineman",60000,6,3,2,4,8,"AG","S"]
[179,14,2,"Elf Thrower",75000,6,3,2,2,8,"AGP","S"]
[180,14,4,"Elf Catcher",100000,8,3,2,4,8,"AG","S"]
[181,14,2,"Elf Blitzer",115000,7,3,2,3,9,"AG","PS"]
[182,2,12,"Snotling Lineman",15000,5,1,3,5,6,"A","G"]
[183,2,2,"Fungus Flinga",30000,5,1,3,4,6,"AP","G"]
[184,2,2,"Fun-Hoppa",20000,6,1,3,5,6,"A","G"]
[185,2,2,"Stilty Runna",20000,6,1,3,5,6,"A","G"]
[186,2,2,"Pump Wagon",105000,4,5,5,0,9,"S","AG"]
[187,2,2,"Trained Troll",115000,4,5,5,5,10,"A","AGP"]
[221,22,12,"Skaven Lineman",50000,7,3,3,4,8,"G","AMS"]
[222,22,2,"Skaven Thrower",85000,7,3,3,2,8,"GP","AMS"]
[223,22,4,"Gutter runner",85000,9,2,2,4,8,"AG","MS"]
[224,22,2,"Skaven blitzer",90000,7,3,3,5,9,"GS","AMP"]
[225,22,1,"Rat Ogre",150000,6,5,4,0,9,"S","AGM"]
[235,1,12,"Goblin Bruiser Lineman",45000,6,2,3,4,8,"A","GPS"]
[236,1,6,"Black Orc",90000,4,4,4,5,10,"GS","AP"]
[237,1,1,"Trained Troll",115000,4,5,5,5,10,"S","AGP"]
[238,8,16,"Zombi Lineman",40000,4,3,4,0,9,"G","AS"]
[239,8,2,"Ghoul Runner",75000,7,3,3,4,8,"AG","PS"]
[240,8,2,"Wraith",95000,6,3,3,0,9,"GS","A"]
[241,8,2,"Werewolf",125000,8,3,3,4,9,"AG","PS"]
[242,8,2,"Flesh golem",115000,4,4,4,0,10,"GS","A"]
[243,5,16,"Gnoblar Lineman",15000,5,1,3,5,6,"A","G"]
[244,5,1,"Ogre Runt Punter",145000,5,5,4,4,10,"PS","AG"]
[245,5,5,"Ogre Blocker",140000,5,5,4,5,10,"S","AGP"]
[246,3,12,"Old world human Lineman",50000,6,3,3,4,9,"G","AS"]
[247,3,1,"Old World Human Thrower",80000,6,3,3,3,9,"GP","AS"]
[248,3,1,"Old World Human Catcher",65000,8,2,3,5,8,"AG","S"]
[249,3,1,"Old World Human Blitzer",90000,7,3,3,4,9,"GS","A"]
[250,3,2,"Old world Dwarf blocker",75000,4,3,4,5,10,"GS","A"]
[251,3,1,"Old World Dwarf Runner",85000,6,3,3,4,9,"GP","AS"]
[252,3,1,"Old World Dwarf Blitzer",80000,5,3,3,4,10,"GS","A"]
[253,3,1,"Old World Dwarf Troll Slayer",95000,5,3,4,0,9,"GS","A"]
[254,3,2,"Old World Halfling Hopeful",30000,5,2,3,4,7,"A","GS"]
[255,3,1,"Ogre",140000,5,5,4,5,10,"S","AG"]
[256,3,1,"Altern forest Treeman",120000,2,6,5,5,11,"S","AGP"]
[263,10,12,"Skeleton Lineman",40000,5,3,4,6,8,"G","AS"]
[264,10,12,"Zombi Lineman",40000,4,3,4,0,9,"G","AS"]
[265,10,4,"Ghoul Runner",75000,7,3,3,4,8,"AG","PS"]
[266,10,2,"Whight Blitzers",90000,6,3,3,5,9,"GS","AP"]
[267,10,2,"Mummy",125000,3,5,5,0,10,"S","AG"]
[268,7,12,"Underworld Goblin Lineman",40000,6,2,3,4,8,"AM","GS"]
[269,7,6,"Underworld snotlings",15000,5,1,3,5,6,"AM","GS"]
[270,7,3,"Skaven Clanrat",50000,7,3,3,4,8,"GM","AS"]
[271,7,1,"Skaven Thrower",85000,7,3,3,2,8,"GMP","AS"]
[272,7,1,"Gutter runner",85000,9,2,2,4,8,"GAM","S"]
[273,7,1,"Skaven blitzer",90000,7,3,3,5,9,"GMS","AS"]
[274,7,1,"Underworld troll",115000,4,5,5,5,10,"MS","AGP"]
[275,7,1,"Underworld Rat Ogre",150000,6,5,4,0,9,"MS","AG"]
[276,11,16,"Wood elf Lineman",70000,7,3,2,4,8,"AG","S"]
[277,11,2,"WE Thrower",95000,7,3,2,2,8,"AGP","S"]
[278,11,4,"WE Catcher",90000,8,2,2,4,8,"AG","PS"]
[279,11,2,"Wardancer",125000,3,2,2,4,8,"AG","PS"]
[280,11,1,"Loren Treeman",120000,2,6,5,5,11,"S","AG"]
[281,23,16,"Tribal Linawoman",50000,6,3,3,4,8,"G","AS"]
[282,23,2,"Eagle Warrior Thrower",75000,6,3,3,3,8,"GP","AS"]
[283,23,2,"Piranha Warrior Catcher",75000,6,3,3,5,8,"AG","S"]
[284,23,4,"Koka Kalim Blitzer",90000,6,3,3,5,8,"GS","A"]
[289,25,16,"Elf Lineman",70000,6,3,2,4,9,"AG","PS"]
[290,25,2,"Elf Thrower",100000,6,3,2,2,9,"AGP","S"]
[291,25,4,"Elf Catcher",90000,8,3,2,5,8,"AG","S"]
[292,25,2,"Elf Blitzer",100000,7,3,2,4,9,"AG","PS"]
[293,26,16,"Norse Lineman",50000,6,3,3,4,8,"G","AS"]
[294,26,2,"Norse Thrower",70000,6,3,3,3,8,"GP","AS"]
[295,26,4,"Norse Berzeker",90000,6,3,3,5,8,"GS","A"]
[296,26,4,"Norse Catcher",90000,7,3,3,4,8,"AG","S"]
[297,26,3,"Ulfwerener",105000,6,4,4,null,9,"GS","A"]
[298,26,1,"Yhetee",140000,5,5,5,null,9,"S","AG"]
[299,21,16,"Human Lineman",50000,6,3,3,4,9,"G","AS"]
[300,21,2,"Human Thrower",80000,6,3,3,2,9,"GP","AS"]
[301,21,4,"Human Blitzer",85000,7,3,3,4,9,"GS","AP"]
[302,21,4,"Human Catcher",65000,8,2,3,5,8,"AG","SP"]
[303,21,3,"Halfling Hopeful",30000,5,2,3,4,7,"A","GS"]
[304,21,1,"Ogre",140000,5,5,4,5,10,"S","AG"]
[305,27,16,"Skeleton Lineman",40000,5,3,4,6,8,"G","AS"]
[306,27,2,"Anointed Thrower",70000,6,3,4,3,8,"GP","A"]
[307,27,2,"Anointed Blitzer",90000,6,3,4,6,9,"GS","AP"]
[308,27,4,"Tomb guardian",100000,4,5,5,0,10,"S","AG"]
[309,28,16,"Thrall Lineman",40000,6,3,3,5,8,"G","AS"]
[310,28,6,"Vampire",110000,6,4,2,3,9,"AGS","P"]
[311,24,16,"Hobgoblin Lineman",40000,6,3,3,4,8,"G","AS"]
[312,24,6,"Chaos Dwarf Blocker",70000,4,3,4,6,10,"GS","AM"]
[313,24,2,"Bull Centaur Blitzer",130000,6,4,4,6,10,"GS","A"]
[314,24,1,"Enslaved Minotaur",150000,5,5,4,0,9,"S","AGM"]
[315,29,16,"Pit Fighter",60000,6,3,3,4,9,"G","AS"]
[316,29,4,"Bloodletter Daemon",80000,6,3,3,4,8,"AGS","P"]
[317,29,2,"Khorne Herald",90000,6,3,3,5,9,"GS","AP"]
[318,29,1,"Bloodthirster",180000,6,5,5,null,10,"S","AG"]
[319,30,16,"Lineman",60000,6,3,3,4,9,"G","AS"]
[320,30,4,"Catcher",80000,7,2,2,4,8,"AG","PS"]
[321,30,4,"Blitzer",110000,7,3,3,4,9,"AGS","P"]
[322,30,1,"Kroxigor",140000,6,5,5,null,10,"S","AG"]
[329,18,12,"Renegade human Lineman",50000,6,3,3,4,9,"GM","AS"]
[330,18,1,"Renegade human Thrower",75000,6,3,3,3,9,"GMP","AS"]
[331,18,1,"Renegade goblin",40000,6,2,3,4,8,"AM","GS"]
[332,18,1,"Renegade Orc",50000,5,3,3,4,10,"GM","AS"]
[333,18,1,"Renegade skaven",50000,7,3,3,4,8,"GM","AS"]
[334,18,1,"Renegade Dark Elf",75000,6,3,2,3,9,"AGM","PS"]
[335,18,1,"Renegade Troll",110000,4,5,5,5,10,"SM","AG"]
[336,18,1,"Renegade Ogre",140000,5,5,4,5,10,"SM","AG"]
[337,18,1,"Renegade Minotaure",150000,5,5,4,0,9,"SM","AG"]
[338,18,1,"Renegade Rat Ogre",150000,6,5,4,0,9,"SM","AG"]
[339,16,16,"Beastman runner Lineman",60000,6,3,3,4,9,"GMS","A"]
[340,16,4,"Chosen blocker",100000,5,4,3,5,9,"GMS","A"]
[341,16,1,"Chaos Troll",115000,4,5,5,5,10,"SM","AG"]
[342,16,1,"Chaos Ogre",140000,5,5,4,5,10,"SM","AG"]
[343,16,1,"Chaos Minotaure",150000,5,5,4,0,9,"SM","AG"]
[344,20,12,"Goblin Lineman",40000,6,2,3,4,8,"A","GPS"]
[345,20,1,"Goblin Bumma",45000,6,2,3,4,8,"A","GPS"]
[346,20,1,"Goblin Pogoer",75000,7,2,3,5,8,"A","GPS"]
[347,20,1,"Goblin Looney",40000,6,2,3,0,6,"A","GS"]
[348,20,1,"Goblin Ooligan",65000,6,2,3,6,8,"A","GPS"]
[349,20,1,"Goblin Fanatic",70000,3,7,3,0,8,"S","AG"]
[350,20,1,"Goblin Doom Diver",60000,6,2,3,6,8,"A","GS"]
[351,20,2,"Trained Troll",115000,4,5,5,5,10,"S","AGP"]
[352,15,12,"Skink Lineman",60000,8,2,3,4,8,"A","GPS"]
[353,15,2,"Skink Chameleon",70000,7,2,3,3,8,"A","GPS"]
[354,15,6,"Saurus",85000,6,4,5,6,10,"GS","A"]
[355,15,1,"Kroxigor",140000,6,5,5,0,10,"S","AG"]
[356,12,12,"Rotter Lineman",35000,5,3,4,6,9,"GM","AS"]
[357,12,4,"Pestigor",75000,6,3,3,4,9,"GMS","AP"]
[358,12,4,"Bloater",115000,4,4,4,6,10,"GMS","A"]
[359,12,1,"Rotspawn",140000,4,5,0,10,8,"S","AGM"]
[360,9,16,"Orc Lineman",50000,5,3,3,4,10,"G","AS"]
[361,9,2,"Orc thrower",65000,5,3,3,3,9,"GP","AS"]
[362,9,4,"Blitzer",80000,6,3,3,4,10,"GS","A"]
[363,9,4,"Big Un Blocker",90000,5,4,4,0,10,"GS","A"]
[364,9,4,"Goblin",40000,6,2,3,4,8,"A","AS"]
[365,9,1,"Untrained Troll",115000,4,5,5,5,10,"S","AGP"]
[366,6,16,"Savage Orc Lineman",60000,5,3,3,4,8,"S","AGP"]
[367,6,4,"Savage Orc Blitzer",90000,6,3,3,4,8,"GS","AP"]
[368,6,2,"Savage Orc Thrower",70000,5,3,3,3,7,"GP","AS"]
[369,6,4,"Savage Brute",80000,4,4,4,5,8,"S","AGP"]
[370,6,1,"Untrained Troll",115000,4,5,5,5,10,"S","AGP"]

{"sheet":"RosterDDB","index":15,"n_rows":31,"n_cols":7,"rows_kept":31,"cut":false,"hidden":true,"merged":[]}
["ID","Name","RerollCost","Tier","Apothicary","Source","Image"]
[3,"Alliance du vieux monde",70000,1,"Yes","Basic rules"]
[23,"Amazones",50000,1,"Yes","Teams of Legend"]
[7,"Bas-fond",70000,2,"Yes","Basic rules"]
[29,"Démons de Khorne",70000,2,"Yes","NAF 2021"]
[11,"Elfes Sylvains",50000,1,"Yes","Basic rules"]
[19,"Elfes noirs",50000,1,"Yes","Basic rules"]
[16,"Elus du Chaos",60000,2,"Yes","Basic rules"]
[20,"Gobelins",60000,3,"Yes","Basic rules"]
[17,"Halfling",60000,3,"yes","Basic rules"]
[25,"Haut Elfes",50000,2,"Yes","Teams of Legend"]
[15,"Hommes-Lézard",70000,1,"Yes","Basic rules"]
[8,"Horreur Nécromantiques",70000,2,"No","Basic rules"]
[21,"Humains",50000,1,"Yes","Basic rules"]
[10,"Morts-vivants",70000,1,"No","Basic rules"]
[13,"Nains",50000,1,"Yes","Basic rules"]
[24,"Nains du Chaos",70000,1,"Yes","Teams of Legend"]
[4,"Noblesse Impériale",70000,2,"Yes","Basic rules"]
[26,"Nordiques",60000,1,"Yes","Teams of Legend"]
[12,"Nurgle",70000,2,"No","Basic rules"]
[5,"Ogres",70000,3,"Yes","Basic rules"]
[9,"Orques",60000,1,"Yes","Basic rules"]
[6,"Orques Sauvages",15000,2,"Yes","My Dugout"]
[1,"Orques noirs",60000,2,"Yes","Basic rules"]
[18,"Renégats du chaos",70000,2,"Yes","Basic rules"]
[27,"Rois des Tombes",70000,2,"No","Teams of Legend"]
[22,"Skaven",50000,1,"Yes","Basic rules"]
[30,"Slanns",50000,2,"Yes","NAF 2021"]
[2,"Snotlings",60000,3,"Yes","Basic rules"]
[14,"Union Elfique",50000,2,"Yes","Basic rules"]
[28,"Vampires",70000,2,"Yes","Teams of Legend"]

{"sheet":"Translation","index":16,"n_rows":197,"n_cols":4,"rows_kept":197,"cut":false,"hidden":false,"merged":[]}
["category","current","EN","FR"]
["Label","Ajout ou retire comp.","Add or remove skill","Ajout ou retire comp."]
["Label","Apoticaire","Apothicary","Apoticaire"]
["Label","Appliquer langue","Select langage","Appliquer langue"]
["Label","Choisit un roster","Choose roster","Choisit un roster"]
["Label","Compétences & Traits","Skills & traits","Compétences & Traits"]
["Label","Coût","Cost","Coût"]
["Label","Créer un nouveau roster","Create Roster","Créer un nouveau roster"]
["Label","La traduction est une opération délicate. Avez-vous une copie du fichier ?","Translation is a dangerous change. do you have a saved file ?","La traduction est une opération délicate. Avez-vous une copie du fichier ?"]
["Label","Princip.","Primary","Princip."]
["Label","Règles spéciales","Special rules","Règles spéciales"]
["Label","Relance","Reroll","Relance"]
["Label","Second.","Secondary","Second."]
["Label","Select. Comp.","Choose skill","Select. Comp."]
["Label","Zone de texte Indéfinie","Unknown label","Zone de texte Indéfinie"]
["Position","Stilty Runna","Stilty Runna","Stilty Runna"]
["Position","Snotling Lineman","Snotling Lineman","Snotling Lineman"]
["Roster","Amazones","Amazons","Amazones"]
["Roster","Orques noirs","Black Orcs","Orques noirs"]
["Roster","Elus du Chaos","Chaos Chosen","Elus du Chaos"]
["Roster","Nains du Chaos","Chaos Dwarves","Nains du Chaos"]
["Roster","Renégats du chaos","Chaos Renegade","Renégats du chaos"]
["Roster","Démons de Khorne","Daemons of Khorne","Démons de Khorne"]
["Roster","Elfes noirs","Dark Elves","Elfes noirs"]
["Roster","Nains","Dwarves","Nains"]
["Roster","Union Elfique","Elven union","Union Elfique"]
["Roster","Gobelins","Goblins","Gobelins"]
["Roster","Halfling","Halflings","Halfling"]
["Roster","Haut Elfes","High Elves","Haut Elfes"]
["Roster","Humains","Humans","Humains"]
["Roster","Noblesse Impériale","Imperial Nobility","Noblesse Impériale"]
["Roster","Hommes-Lézard","Lizardmen","Hommes-Lézard"]
["Roster","Horreur Nécromantiques","Necromantic horror","Horreur Nécromantiques"]
["Roster","Nordiques","Norse","Nordiques"]
["Roster","Nurgle","Nurgle","Nurgle"]
["Roster","Ogres","Ogres","Ogres"]
["Roster","Alliance du vieux monde","Old World alliance","Alliance du vieux monde"]
["Roster","Orques","Orcs","Orques"]
["Roster","Orques Sauvages","Savage Orcs","Orques Sauvages"]
["Roster","Morts-vivants","Shambling Undead","Morts-vivants"]
["Roster","Skaven","Skaven","Skaven"]
["Roster","Slanns","Slanns","Slanns"]
["Roster","Snotlings","Snotlings","Snotlings"]
["Roster","Rois des Tombes","Tomb Kings","Rois des Tombes"]
["Roster","Bas-fond","Underworld Denizen","Bas-fond"]
["Roster","Vampires","Vampires","Vampires"]
["Roster","Elfes Sylvains","Wood Elves","Elfes Sylvains"]
["SkillCategory","Agilité","Agility","Agilité"]
["SkillCategory","Force","Strength","Force"]
["SkillCategory","Général","General","Général"]
["SkillCategory","Passe","Passing","Passe"]
["SkillCategory","Mutation","Mutation","Mutation"]
["SkillCategory","Trait","Trait","Trait"]
["SkillName","Précision","Accurate","Précision"]
["SkillName","Toujours Affamé","Always hungry","Toujours Affamé"]
["SkillName","Sauvagerie animale","Animal savagery","Sauvagerie animale"]
["SkillName","Animosité (other positions)","Animosity (other positions)","Animosité (other positions)"]
["SkillName","Animosité (other races)","Animosity (other races)","Animosité (other races)"]
["SkillName","Animosité (same position)","Animosity (same position)","Animosité (same position)"]
["SkillName","Animosité (x)","Animosity (x)","Animosité (x)"]
["SkillName","Clef de bras","Arm bar","Clef de bras"]
["SkillName","Chaine et boulet","Ball & chain","Chaine et boulet"]
["SkillName","Big Guy Limit (1)","Big Guy Limit (1)","Big Guy Limit (1)"]
["SkillName","Big Guy Limit (3)","Big Guy Limit (3)","Big Guy Limit (3)"]
["SkillName","Main démesurée","Big hand","Main démesurée"]
["SkillName","Blocage","Block","Blocage"]
["SkillName","Bombardier","Bombardier","Bombardier"]
["SkillName","Cerveau lent","Bonehead","Cerveau lent"]
["SkillName","Bagarreur","Brawler","Bagarreur"]
["SkillName","Esquive en force","Break tackle","Esquive en force"]
["SkillName","Canonier","Cannoneer","Canonier"]
["SkillName","Reception","Catch","Reception"]
["SkillName","Tronçonneuse","Chainsaw","Tronçonneuse"]
["SkillName","Griffes","Claws","Griffes"]
["SkillName","Perce nuage","Cloud Burster","Perce nuage"]
["SkillName","Intrepidité","Dauntless","Intrepidité"]
["SkillName","Décomposition","Decay","Décomposition"]
["SkillName","Défenseur","Defensive","Défenseur"]
["SkillName","Joueur déloyal (+1)","Dirty Player (+1)","Joueur déloyal (+1)"]
["SkillName","Joueur déloyal (+2)","Dirty Player (+2)","Joueur déloyal (+2)"]
["SkillName","Présence perturbante","Disturbing presence","Présence perturbante"]
["SkillName","Reception plongeante","Diving Catch","Reception plongeante"]
["SkillName","Tacle plongeant","Diving Tackle","Tacle plongeant"]
["SkillName","Esquive","Dodge","Esquive"]
["SkillName","Délestage","Dump-off","Délestage"]
["SkillName","Bras supplémentaire","Extra arms","Bras supplémentaire"]
["SkillName","Parade","Fend","Parade"]
["SkillName","Répulsion","Foul appareance","Répulsion"]
["SkillName","Frénésie","Frenzy","Frénésie"]
["SkillName","Fumblerooskie","Fumblerooskies","Fumblerooskie"]
["SkillName","Projection","Grab","Projection"]
["SkillName","Garde","Guard","Garde"]
["SkillName","Passe désespérée","Hail Mary pass","Passe désespérée"]
["SkillName","Cornes","Horns","Cornes"]
["SkillName","Regard hypnotique","Hypnotic gaze","Regard hypnotique"]
["SkillName","Peau de fer","Iron Hard skin","Peau de fer"]
["SkillName","Juggernaut","Juggernaut","Juggernaut"]
["SkillName","Rétablissement","Jump up","Rétablissement"]
["SkillName","Frappe précise","Kick","Frappe précise"]
["SkillName","Botter de coéquipier","Kick team-mate","Botter de coéquipier"]
["SkillName","Chef","Leader","Chef"]
["SkillName","Saut","Leap","Saut"]
["SkillName","Solitaire (2+)","Loner (2+)","Solitaire (2+)"]
["SkillName","Solitaire (3+)","Loner (3+)","Solitaire (3+)"]
["SkillName","Solitaire (4+)","Loner (4+)","Solitaire (4+)"]
["SkillName","Solitaire (5+)","Loner (5+)","Solitaire (5+)"]
["SkillName","Solitaire (X+)","Loner (X+)","Solitaire (X+)"]
["SkillName","Chataigne (+1)","Mighty Blow (+1)","Chataigne (+1)"]
["SkillName","Chataigne (+2)","Mighty Blow (+2)","Chataigne (+2)"]
["SkillName","Grande gueule","Monstruous mouth","Grande gueule"]
["SkillName","Blocage multiple","Multiple block","Blocage multiple"]
["SkillName","Nerfs d'acier","Nerve of steels","Nerfs d'acier"]
["SkillName","Sans les mains","No hands","Sans les mains"]
["SkillName","Sur le ballon","On the ball","Sur le ballon"]
["SkillName","Passe","Pass","Passe"]
["SkillName","Marteau pilon","Pile driver","Marteau pilon"]
["SkillName","Contagieux","Plague ridden","Contagieux"]
["SkillName","Echasse à ressort","Pogo stick","Echasse à ressort"]
["SkillName","Queue préhensible","Prehensive tail","Queue préhensible"]
["SkillName","Pro","Pro","Pro"]
["SkillName","Gerbe de vomi","Projectile vomit","Gerbe de vomi"]
["SkillName","Gros débile","Really stupid","Gros débile"]
["SkillName","Regeneration","Regeneration","Regeneration"]
["SkillName","Pois plume","Right Stuff","Pois plume"]
["SkillName","Passe dans la course","Running pass","Passe dans la course"]
["SkillName","Libération contrôlée","Safe pair of hands","Libération contrôlée"]
["SkillName","Passe assurée","Safe pass","Passe assurée"]
["SkillName","Arme secrète","Secret weapon","Arme secrète"]
["SkillName","Poursuite","Shadowing","Poursuite"]
["SkillName","Glissade contrôlée","Side step","Glissade contrôlée"]
["SkillName","Sournois","Sneaky git","Sournois"]
["SkillName","Sprint","Sprint","Sprint"]
["SkillName","Poignard","Stab","Poignard"]
["SkillName","Stabilité","Stand firm","Stabilité"]
["SkillName","Arracher le ballon","Strip ball","Arracher le ballon"]
["SkillName","Bras musclé","Strong arm","Bras musclé"]
["SkillName","Minus","Stunty","Minus"]
["SkillName","Equilibre","Sure feet","Equilibre"]
["SkillName","Prise Sûre","Sure Hand","Prise Sûre"]
["SkillName","Déferlement","Swarming","Déferlement"]
["SkillName","Piqué","Swoop","Piqué"]
["SkillName","Tacle","Tackle","Tacle"]
["SkillName","Prendre racine","Take root","Prendre racine"]
["SkillName","Tentacules","Tentacle","Tentacules"]
["SkillName","Crâne épais","Thick skull","Crâne épais"]
["SkillName","Lancer de coéquipier","Throw team-mate","Lancer de coéquipier"]
["SkillName","Microbe","Tichy","Microbe"]
["SkillName","Timmm-ber","Timmm-ber","Timmm-ber"]
["SkillName","Deux têtes","Two heads","Deux têtes"]
["SkillName","Fureur débridée","Unchanneled fury","Fureur débridée"]
["SkillName","très longues jambes","Very long legs","très longues jambes"]
["SkillName","Lutte","Wrestle","Lutte"]
["SPName","Akhorne l'écureuil","Akhorne the Squirrel","Akhorne l'écureuil"]
["SPRuleDescription","Akhorne peut décider de relancer un D6, lorsqu'il effectue un test d'intrépidité","Akhorne may choose to re-roll the D6 with rolling for Dauntless skill","Akhorne peut décider de relancer un D6, lorsqu'il effectue un test d'intrépidité"]
["SPRuleDescription","Une fois par partie, après avoir utilisé la compétence passe pour effectuer une action de passe, Skrull peut décider d'ajouter son score de force au résultat du dé.","Once a game, after using skill pass to perform a pass, Skrull can add his Strenght to the dice result","Une fois par partie, après avoir utilisé la compétence passe pour effectuer une action de passe, Skrull peut décider d'ajouter son score de force au résultat du dé."]
["SPRuleName","Rage Aveugle","Blind Rage","Rage Aveugle"]
["SRName","Ligue des royaumes Elfiques","Elven Kingdoms League","Ligue des royaumes Elfiques"]
["SRName","Toute équipe","All teams","Toute équipe"]
["SRName","Bagarre des Terres arides","Badland Brawls","Bagarre des Terres arides"]
["SRName","Chantage et Corruption","Bribery and Corruption","Chantage et Corruption"]
["SRName","Favori de …","Favoured of ….","Favori de …"]
["SRName","Favori de Khorne","Favoured of Khorne","Favori de Khorne"]
["SRName","Favori de Nurgle","Favoured of Nurgle","Favori de Nurgle"]
["SRName","Favori de Slanesh","Favoured of Slanesh","Favori de Slanesh"]
["SRName","Favori de Tzeench","Favoured of Tzeench","Favori de Tzeench"]
["SRName","Coupe dé à coudre","Halfling Thimble cup","Coupe dé à coudre"]
["SRName","Lineman à vil prix","Low Cost Linemen","Lineman à vil prix"]
["SRName","Super-Ligue de Lustrie","Lustrian SuperLeague","Super-Ligue de Lustrie"]
["SRName","Maitre de la Non-Vie","Master of Undeath","Maitre de la Non-Vie"]
["SRName","Classique du Vieux Monde","Old World Classic","Classique du Vieux Monde"]
["SRName","Sport de sylvanie","Sylvanian Spotlight","Sport de sylvanie"]
["SRName","Défi des Bas fonds","Underworld Challenge","Défi des Bas fonds"]
["SRName","Super-ligue du bord du Monde","Worlds Edge Superleague","Super-ligue du bord du Monde"]
["SPRuleName","Le plus sournois de tous","Sneakiest of the lot","Le plus sournois de tous"]
["SPRuleName","Danse hypnotisante","Dance hypnotique","Danse hypnotisante"]
["SPRuleName","Elan frénétique","Rush Frénétique","Elan frénétique"]
["SPRuleName","Tout ou rien","Vers l'inconnu","Tout ou rien"]
["SPRuleName","Ethérée","Incorporeal","Ethérée"]
["SPRuleName","Grand Professionnel","Professionnel aguerri","Grand Professionnel"]
["SPRuleName","Tueur","Tueur","Tueur"]
["SPRuleName","Traître","Tricheur","Traître"]
["SPRuleName","Vieux Pro","Ancien Pro","Vieux Pro"]
["SPRuleName","Indomptable","Indomptable !","Indomptable"]
["SPRuleName","Seigneur du Chaos","Seigneur du Chaos","Seigneur du Chaos"]
["SPRuleName","Fiable","Reliable","Fiable"]
["SPRuleName","Coup desctructeur","Coup puissant","Coup desctructeur"]
["SPRuleName","La Baliste","La Baliste","La Baliste"]
["SPRuleName","Pointe de vitesse","Salve de vitesse","Pointe de vitesse"]
["SPRuleName","Bélier","Charge","Bélier"]
["SPRuleName","Flammes fantomatiques","Flammes fantomatiques","Flammes fantomatiques"]
["SPRuleName","Mutilation sauvage","Mutilation sauvage","Mutilation sauvage"]
["SPRuleName","Blocage un peu brutal","Blocage un peu brutal","Blocage un peu brutal"]
["SPRuleName","Sagesse du Nain Blanc","Sagesse du Nan Blanc","Sagesse du Nain Blanc"]
["SPRuleName","Etes vous un zoat ?","Etes vous un zoat ?","Etes vous un zoat ?"]
["SPRuleName","Coup destructeur","Crushing blow","Coup destructeur"]
["SPRuleName","Deux pour Un","2 pour le prix d'un","Deux pour Un"]
["SPRuleName","Jeu de passe secrète","Gros jeu de passe","Jeu de passe secrète"]

{"sheet":"Inducement","index":17,"n_rows":4,"n_cols":10,"rows_kept":4,"cut":false,"hidden":true,"merged":[]}
["InduceID","InduceType","InduceName","InduceMaxOccurence","InduceCost","InduceEffectSummary","InduceAccessSR","InducePromo","InducePromoAccess","Source"]
[1,"Standard","Temporary Agency Cheerleader",4,20000,null,1,null,null,"Basic Rules"]
[2,"(In)Famous Coaching staff","Professor Frönkenheim",1,13000,"Professor Frankönstein randomly modify some player before game.",7,null,null,"Spike 11"]
[3,"Wizard Inducement","Wicked Witch",1,150000,"Wicked Witch can cast once a game either spells ZAP! , either Plague of Warts","3.5.7",null,null,"Spike 11"]